{"text_format":"1","workbook":"xlsx","n_sheets":14,"sheets":["AER Sheet Heading","AER CF","AER NRs","AER lookups","AER ETL","Instructions","Contents","Business & other details","2.2 Repex","2.5 Connections","2.6 Non-network","2.10 Network overheads","2.11 Labour","8.2 Capex"],"not_rendered":{"charts":0,"images":5,"macros":1,"external_links":1,"defined_names":390,"comments":1,"pivot_tables":0},"unopened":[],"bounds":{"document_bytes":16777216,"sheet_cells":100000,"rows_first":2000,"rows_last":500,"rows_between":2000,"halvings":0,"cell_chars":16384,"cell_head_chars":4096},"cells_cut":0,"cells_raw":0,"read":"whole","date_system":"1900"}

{"sheet":"AER Sheet Heading","index":0,"n_rows":44,"n_cols":9,"rows_kept":44,"cut":false,"hidden":true,"merged":[[41,2,41,8],[42,2,42,8],[10,2,10,8],[11,2,11,8]]}
[null,{"$f":"IF(dms_MultiYear_ResponseFlag=\"Yes\",\"REGULATORY REPORTING STATEMENT - HISTORICAL INFORMATION\",INDEX(dms_Worksheet_List,MATCH(dms_Model,dms_Model_List)))","v":"REGULATORY REPORTING STATEMENT - HISTORICAL INFORMATION"}]
[null,{"$f":"INDEX(dms_TradingNameFull_List,MATCH(dms_TradingName,dms_TradingName_List))","v":"CitiPower"}]
[null,{"$f":"dms_Header_Span","v":"2009 to 2018"}]
[null,"XX"]
[]
[]
[]
[]
[]
[]
[null,null,"EXPENDITURE"]
[null,null,{"$f":"CONCATENATE(\"Forecast ($0's, real \",dms_DollarReal,\")\")","v":"Forecast ($0's, real December 2009)"}]
[null,null,{"$f":"CRCP_y4","v":"2007"},{"$f":"CRCP_y5","v":"2008"},{"$f":"FRCP_y1","v":"2009"},{"$f":"FRCP_y2","v":2010},{"$f":"FRCP_y3","v":2011},{"$f":"FRCP_y4","v":2012},{"$f":"FRCP_y5","v":2013}]
[]
[]
[]
[]
[]
[]
[]
[]
[]
[]
[]
[]
[]
[]
[]
[]
[]
[]
[]
[]
[]
[]
[]
[]
[]
[]
[]
[]
[null,null,"VOLUMES"]
[null,null,"0's"]
[null,null,{"$f":"CRCP_y4","v":"2007"},{"$f":"CRCP_y5","v":"2008"},{"$f":"FRCP_y1","v":"2009"},{"$f":"FRCP_y2","v":2010},{"$f":"FRCP_y3","v":2011},{"$f":"FRCP_y4","v":2012},{"$f":"FRCP_y5","v":2013}]

{"sheet":"AER CF","index":1,"n_rows":71,"n_cols":24,"rows_kept":71,"cut":false,"hidden":true,"merged":[[3,1,3,21],[35,37,35,58],[36,37,36,58],[37,37,37,58],[35,68,35,89],[36,68,36,89],[37,68,37,89]]}
[null,"AER CONDITIONAL FORMATTING"]
[]
[]
[null,"CONDITIONAL FORMATTING MAP"]
[null,null,null,null,null,"=INDEX(dms_CF_3.6.1, MATCH(dms_TradingName,dms_CF_TradingName))=\"Y\"","=INDEX(dms_CF_3.6.5, MATCH(dms_TradingName,dms_CF_TradingName))=\"Y\"","=INDEX(dms_CF_3.6.6, MATCH(dms_TradingName,dms_CF_TradingName))=\"Y\"","=INDEX(dms_CF_3.6.7.1, MATCH(dms_TradingName,dms_CF_TradingName))=\"Y\"","=INDEX(dms_CF_3.6.7.2, MATCH(dms_TradingName,dms_CF_TradingName))=\"Y\"","=INDEX(dms_CF_3.6.7.3, MATCH(dms_TradingName,dms_CF_TradingName))=\"Y\"","=INDEX(dms_CF_3.6.7.4, MATCH(dms_TradingName,dms_CF_TradingName))=\"Y\"","=INDEX(dms_CF_3.6.8, MATCH(dms_TradingName,dms_CF_TradingName))=\"Y\"","=INDEX(dms_CF_4.1, MATCH(dms_TradingName,dms_CF_TradingName))=\"Y\"","=INDEX(dms_CF_6.6.1, MATCH(dms_TradingName,dms_CF_TradingName))=\"Y\"","=INDEX(dms_CF_6.8, MATCH(dms_TradingName,dms_CF_TradingName))=\"Y\"","=INDEX(dms_CF_7.12, MATCH(dms_TradingName,dms_CF_TradingName))=\"Y\"","=INDEX(dms_CF_8.1_A, MATCH(dms_TradingName,dms_CF_TradingName))=\"Y\"","=INDEX(dms_CF_8.1_B, MATCH(dms_TradingName,dms_CF_TradingName))=\"Y\"","=INDEX(dms_CF_8.1_Neg, MATCH(dms_TradingName,dms_CF_TradingName))=\"Y\"","=INDEX(dms_CF_4.4.1_Neg, MATCH(dms_TradingName,dms_CF_TradingName))=\"Y\""]
[null,"dms_CF_TradingName","JurisdictionList","Sector","Segment","dms_CF_3.6.1","dms_CF_3.6.5","dms_CF_3.6.6","dms_CF_3.6.7.1","dms_CF_3.6.7.2","dms_CF_3.6.7.3","dms_CF_3.6.7.4","dms_CF_3.6.8","dms_CF_4.1","dms_CF_6.6.1","dms_CF_6.8","dms_CF_7.12","dms_CF_8.1_A","dms_CF_8.1_B","dms_CF_8.1_Neg","dms_CF_4.4.1","dms_CF_MAIFI_flag","Spare1","Spare2"]
[null,"Ausgrid","NSW","Electricity","Distribution",null,"Y",null,"N","N","N","Y","N","N","N","Y","Y","N","Y","Y","N","N","N","N"]
[null,"Ausgrid (Tx Assets)","NSW","Electricity","Distribution",null,"Y",null,"N","N","N","Y","N","N","N","Y","Y","N","Y","Y","N","N","N","N"]
[null,"AusNet (D)","Vic","Electricity","Distribution",null,"N",null,"N","N","N","N","N","N","N","Y","N","N","N","Y","N","N","N","N"]
[null,"AusNet (T)","Vic","Electricity","Transmission",null,"N",null,"N","N","N","N","N","Y","N","Y","N","N","N","Y","N","N","N","N"]
[null,null,null,null,null,null,"N",null,"N","N","N","N","N","N",null,"Y","N","N","N","N","N","N","N","N"]
[null,null,null,null,null,null,"N",null,"N","N","N","N","N","N",null,"Y","N","N","N","N","N","N","N","N"]
[null,"CitiPower","Vic","Electricity","Distribution",null,"N",null,"N","N","N","N","N","N","N","Y","N","N","N","Y","N","N","N","N"]
[null,"Directlink","Qld","Electricity","Transmission",null,"N",null,"N","N","N","N","N","Y","N","Y","N","N","Y","Y","N","N","N","N"]
[null,"ElectraNet","SA","Electricity","Transmission",null,"N",null,"N","N","N","N","N","Y","N","Y","N","N","Y","Y","N","N","N","N"]
[null,"Endeavour Energy","NSW","Electricity","Distribution",null,"Y",null,"N","N","N","Y","N","N","N","Y","Y","N","Y","Y","Y","N","N","N"]
[null,"Energex","Qld","Electricity","Distribution",null,"Y",null,"N","N","N","N","N","N","N","Y","Y","N","Y","Y","Y","N","N","N"]
[null,"Ergon Energy","Qld","Electricity","Distribution",null,"Y",null,"N","N","N","N","N","N","N","Y","Y","N","Y","Y","N","N","N","N"]
[null,"Essential Energy","NSW","Electricity","Distribution",null,"Y",null,"N","N","N","Y","N","N","N","Y","Y","N","Y","Y","N","N","N","N"]
[null,"Evoenergy Distribution","ACT","Electricity","Distribution",null,"Y",null,"Y","Y","N","Y","N","Y","N","Y","Y","N","Y","Y","N","N","N","N"]
[null,"Evoenergy Distribution (Tx Assets)","ACT","Electricity","Distribution",null,"Y",null,"Y","Y","N","Y","N","Y","N","Y","Y","N","Y","Y","N","N","N","N"]
[null,"Jemena Electricity","Vic","Electricity","Distribution",null,"N",null,"N","N","N","N","N","N","N","Y","N","N","N","Y","N","N","N","N"]
[null,"Murraylink","SA","Electricity","Transmission",null,"N",null,"N","N","N","N","N","Y","N","Y","N","N","Y","Y","N","N","N","N"]
[null,"Power and Water","NT","Electricity","Distribution",null,"N",null,"N","Y","N","N","Y","Y","Y","Y","Y","N","Y","Y","N","N","N","N"]
[null,"Powercor Australia","Vic","Electricity","Distribution",null,"N",null,"N","N","N","N","N","N","N","Y","N","N","N","Y","N","N","N","N"]
[null,"Powerlink","Qld","Electricity","Transmission",null,"N",null,"N","N","N","N","N","Y","N","Y","N","N","Y","Y","N","N","N","N"]
[null,"SA Power Networks","SA","Electricity","Distribution",null,"Y",null,"N","N","N","N","N","N","N","Y","Y","Y","Y","N","N","N","N","N"]
[null,"TasNetworks (D)","Tas","Electricity","Distribution",null,"Y",null,"N","N","N","N","N","N","N","Y","Y","N","Y","Y","N","N","N","N"]
[null,"TasNetworks (T)","Tas","Electricity","Transmission",null,"N",null,"N","N","N","N","N","Y","N","Y","N","N","Y","Y","N","N","N","N"]
[null,"TransGrid","NSW","Electricity","Transmission",null,"N",null,"N","N","N","N","N","Y","N","Y","N","N","Y","Y","N","N","N","N"]
[null,"United Energy","Vic","Electricity","Distribution",null,"N",null,"N","N","N","N","N","N","N","Y","N","N","N","Y","N","N","N","N"]
[]
[]
[null,"Confidential"]
[null,"Amended"]
[]
[null,"Worksheet 6.2 STPIS reliability"]
[null,"Formula",null,null,null,"Applied to:"]
[]
[null,"=INDEX(dms_CBD_flag,MATCH(dms_TradingName,dms_TradingName_List))=\"NO\"",null,null,null,"$D$11,$D$17,$D$23,$D$33,$D$39,$D$45,$D$55,$D$61,$D$67,$D$77,$D$83,$D$89"]
[null,"=INDEX(dms_Urban_flag,MATCH(dms_TradingName,dms_TradingName_List))=\"NO\"",null,null,null,"$D$12,$D$18,$D$24,$D$56,$D$62,$D$78,$D$68,$D$84"]
[null,"=INDEX(dms_ShortRural_flag,MATCH(dms_TradingName,dms_TradingName_List))=\"NO\"",null,null,null,"$D$13,$D$19,$D$25,$D$57,$D$63,$D$69,$D$79,$D$85"]
[null,"=INDEX(dms_LongRural_flag,MATCH(dms_TradingName,dms_TradingName_List))=\"NO\"",null,null,null,"$D$14,$D$20,$D$26,$D$58,$D$64,$D$65,$D$70,$D$71,$D$80,$D$86"]
[null,"=INDEX(dms_FeederType_5_flag,MATCH(dms_TradingName,dms_TradingName_List))=\"NO\"",null,null,null,"$D$87,$D$81,$D$71,$D$65,$D$59,$D$49,$D$43,$D$37,$D$21,$D$15"]
[null,"=dms_MAIFI_Flag=\"No\"",null,null,null,"$D$55:$D$72"]
[]
[]
[null,"Business & other details"]
[null,"=(INDEX(dms_Model_Span,MATCH(dms_Model,dms_Model_List))>1)"]
[null,"=(INDEX(dms_Model_Span,MATCH(dms_Model,dms_Model_List))=1)"]
[]
[]
[null,"STYLES IN USE"]
[null,"HEADING 1","dms_1"]
[null,"HEADING 2","dms_2"]
[null,"HEADING 3","dms_3"]
[null,"HEADING 4","dms_4"]
[null,"HEADING 5","dms_5"]
[null,null,"dms_NUM"]
[null,null,"dms_NUM%"]
[null,null,"dms_Row_Locked"]
[null,null,"dms_Row1"]
[null,null,"dms_Row2"]
[null,null,"dms_T1"]
[null,null,"dms_T2"]
[null,null,"dms_BH"]
[null,null,"dms_BY1"]
[null,null,"dms_BY2"]
[null,null,"dms_GH"]
[null,null,"dms_GY1"]
[null,null,"dms_GY2"]

{"sheet":"AER NRs","index":2,"n_rows":226,"n_cols":15,"rows_kept":226,"cut":false,"hidden":true,"merged":[[4,1,26,1],[174,1,175,1],[177,1,182,1],[63,1,76,1],[133,1,148,1],[82,1,95,1],[150,1,156,1],[116,1,130,1],[206,1,211,1],[197,1,198,1],[30,1,53,1],[98,1,105,1],[108,1,113,1],[189,1,190,1],[193,1,194,1],[158,1,172,1],[31,67,31,88],[32,67,32,88],[33,67,33,88],[34,10,38,10],[42,10,43,10],[31,10,33,10],[31,36,31,57],[32,36,32,57],[33,36,33,57]]}
[null,"AER NAMED RANGES"]
[]
[null,"DROP DOWN SELECTORS USED IN WORKBOOKS"]
[]
[null,"COVER SHEET","dms_DataQuality_List","dms_Confid_status_List"]
[null,null,"-- select --","-- select --"]
[null,null,"Actual","Public"]
[null,null,"Estimate","Confidential"]
[null,null,"Consolidated"]
[]
[]
[null,null,"For all files either AER or business needs to be able to specify the type of submission","For PTRM & RFM templates we must provide a choice in case they change their form of control - otherwise it is drawn from the business specific lookup table above."]
[null,null,"dms_SourceList","dms_FormControl_Choices"]
[null,null,"-- select --","Revenue cap"]
[null,null,"After appeal","Revenue yield"]
[null,null,"Draft decision","Weighted average price cap"]
[null,null,"Final decision"]
[null,null,"PTRM update 1"]
[null,null,"PTRM update 2"]
[null,null,"PTRM update 3"]
[null,null,"PTRM update 4"]
[null,null,"PTRM update 5"]
[null,null,"PTRM update 6"]
[null,null,"PTRM update 7"]
[null,null,"Regulatory proposal"]
[null,null,"Reporting"]
[null,null,"Revised regulatory proposal"]
[]
[]
[null,null,null,null,null,null,null,null,null,null,"This is used to create an image to insert on 6.3 STPIS sheet - not for dropdown lists.",null,null,"GAS"]
[null,"CA & RESET RINS \nDNSP","dms_DNSP_020301_SubstationType","dms_DNSP_020301_ProjectType","dms_DNSP_020301_ProjectTrigger","dms_DNSP_020302_ProjectType","dms_DNSP_020302_ProjectTrigger","dms_STPIS_Exclusion_List","dms_Reason_Interruption","dms_Reason_Interruption_Detailed","Reason for interruption",null,null,"dms_N0205_AssetType"]
[null,null,"Subtransmission substation","New substation establishment","Demand growth","New line on new route - single circuit","Demand growth","Weather","Animal","Animal impact","Animal","Animal impact",null,"Cast Iron"]
[null,null,"Zone substation","Substation upgrade - capacity"," Voltage issues","New line on new route - dual circuit"," Voltage issues","Equipment failure","Asset failure","Animal nesting/burrowing, etc and other",null,"Animal nesting/burrowing, etc and other",null,"PVC"]
[null,null,"Switching station","Substation upgrade - voltage"," Reactive power issue","New line on new route - other"," Reactive power issue","Operational error","Other","Other",null,"Other",null,"Polyamide"]
[null,null,"Other","Other"," Fault level issues","Line rebuild over existing route - single circuit"," Fault level issues","Vegetation","Overloads","LV","Asset failure","LV",null,"High density polyethylene (80)"]
[null,null,null,null," Safety","Line rebuild over existing route - dual circuit"," Net market benefit","Animals","Planned","Distribution substation",null,"Distribution substation",null,"High density polyethylene (100)"]
[null,null,null,null," Environment","Reconductor - Single circuit"," Safety","Third party impacts","Network business","HV",null,"HV",null,"High density polyethylene (250)"]
[null,null,null,null," Other","Reconductor - Dual circuit"," Environment","Transmission failure","Third party","Zone substation",null,"Zone substation",null,"High density polyethylene (575)"]
[null,null,null,null,null,"Reconductor - Other"," Other","Load shedding","Unknown","Subtransmission",null,"Subtransmission",null,"Medium density polyethylene"]
[null,null,null,null,null,"Line upgrade - raising/retensoring",null,"Inter-distributor connection failure","Vegetation","insert description of 'other'","Other","insert description of 'other'",null,"Unprotected steel"]
[null,null,null,null,null,"Line upgrade - voltage upgrade",null,"Other","Weather","Network error","Overloads",null,null,"Protected steel"]
[null,null,null,null,null,"Line upgrade - capacity",null,null,"2 - STPIS Exclusion (3.3)(a)","Switching and protection error","Planned",null,null,"Other"]
[null,null,null,null,null,"String spare circuit",null,null,"3 - STPIS Exclusion (3.3)(a)","Fire","Network business","Network error"]
[null,null,null,null,null,"Other",null,null,"4 - STPIS Exclusion (3.3)(a)","Other",null,"Switching and protection error"]
[null,null,null,null,null,null,null,null,"5 - STPIS Exclusion (3.3)(a)","Dig-in","Third party","Fire"]
[null,null,null,null,null,null,null,null,"6 - STPIS Exclusion (3.3)(a)","Unauthorised access",null,"Other"]
[null,null,null,null,null,null,null,null,"7 - STPIS Exclusion (3.3)(a)","Vehicle impact",null,"Dig-in"]
[null,null,null,null,null,null,null,null,null,"Unknown",null,"Unauthorised access"]
[null,null,null,null,null,null,null,null,null,"Blow-in/Fall-in - NSP responsibility",null,"Vehicle impact"]
[null,null,null,null,null,null,null,null,null,"Grow-in - NSP responsibility","Unknown","Unknown"]
[null,null,null,null,null,null,null,null,null,"Blow-in/Fall-in - Other responsible party","Vegetation","Blow-in/Fall-in - NSP responsibility"]
[null,null,null,null,null,null,null,null,null,"Grow-in - Other responsible party",null,"Grow-in - NSP responsibility"]
[null,null,null,null,null,null,null,null,null,null,null,"Blow-in/Fall-in - Other responsible party"]
[null,null,null,null,null,null,null,null,null,null,null,"Grow-in - Other responsible party"]
[null,null,null,null,null,null,null,null,null,null,"Weather"]
[null,null,null,null,null,null,null,null,null,null,"2 - STPIS Exclusion (3.3)(a)"]
[null,null,null,null,null,null,null,null,null,null,"3 - STPIS Exclusion (3.3)(a)"]
[null,null,null,null,null,null,null,null,null,null,"4 - STPIS Exclusion (3.3)(a)"]
[null,null,null,null,null,null,null,null,null,null,"5 - STPIS Exclusion (3.3)(a)"]
[null,null,null,null,null,null,null,null,null,null,"6 - STPIS Exclusion (3.3)(a)"]
[null,null,null,null,null,null,null,null,null,null,"7 - STPIS Exclusion (3.3)(a)"]
[]
[]
[null,"CA & RESET RINS \nTNSP ","dms_TNSP_0203_SubstationType","dms_TNSP_020301_ProjectType","dms_TNSP_020301_ProjectTrigger","dms_TNSP_020302_ProjectType","dms_TNSP_0203_ProjectTrigger"]
[null,null,"Terminal station","New substation establishment","Demand growth","New line on new route - single circuit","Demand growth"]
[null,null,"Switching station","Capacity upgrade"," Voltage issues","New line on new route - dual circuit"," Voltage issues"]
[null,null,"Transmission substation","Voltage upgrade"," Reactive power issue","New line on new route - other"," Reactive power issue"]
[null,null,"Other","Other"," Fault level issues","Line rebuild over existing route - single circuit"," Fault level issues"]
[null,null,null,null,"Net market benefit","Line rebuild over existing route - dual circuit"," Net market benefit"]
[null,null,null,null," Safety","Reconductor - Single circuit"," Safety"]
[null,null,null,null," Environment","Reconductor - Dual circuit"," Environment"]
[null,null,null,null," Other","Reconductor - Other"," Other"]
[null,null,null,null,null,"Line upgrade - raising/retensoring"]
[null,null,null,null,null,"Line upgrade - voltage upgrade"]
[null,null,null,null,null,"Line upgrade - capacity"]
[null,null,null,null,null,"String spare circuit"]
[null,null,null,null,null,"Other"]
[]
[]
[]
[null,"NAMED RANGES USED IN ETL PROCESS"]
[]
[null,"CA & RESET RINS \nDNSP ONLY","dms_020303_01_UOM","dms_020501_01_UOM","dms_020501_02_UOM","dms_020501_03_UOM","dms_020501_04_UOM","dms_020701_01_UOM","dms_020701_02_UOM","dms_020701_01_Rows","dms_040102_01_UOM","dms_040102_04_UOM","dms_S140101_UOM","dms_S140102_UOM","dms_S140201_UOM"]
[null,null,"Circuit line length in km","0's","0's","0's","0's","km","km","Route line length within zone","0's","days","number","number","number per km"]
[null,null,"Circuit line length in km","0's","0's","0's","0's","0's","0's","Number of maintenance spans","0's","0's","number","number","number"]
[null,null,"Circuit line length in km","MVA added","MVA added","MVA added","MVA added","km","km","Total length of maintenance spans","0's","$0s","number","number","number"]
[null,null,"Circuit line length in km","0's","0's","0's","0's","km","km","Length of vegetation corridors","$0s","0's","km","number"]
[null,null,"Number","total spend $0s","total spend $0s","total spend $0s","total spend $0s","0's","0's","Average number of trees per maintenance span"]
[null,null,"Number","net circuit km added","net circuit km added","net circuit km added","net circuit km added","years","years","Average frequency of cutting cycle"]
[null,null,"Number","total spend $0s","total spend $0s","total spend $0s","total spend $0s"]
[null,null,null,"net circuit km added","net circuit km added","net circuit km added","net circuit km added"]
[null,null,null,"total spend $0s","total spend $0s","total spend $0s","total spend $0s"]
[null,null,null,"0's",null,"$0s"]
[null,null,null,"0's"]
[null,null,null,"0's"]
[null,null,null,"$0s"]
[]
[]
[null,"CA & RESET RINS \nTNSP ONLY","dms_020701_01_UOM"]
[null,null,"km"]
[null,null,"0's"]
[null,null,"km"]
[null,null,"0's"]
[null,null,"km"]
[null,null,"metres"]
[null,null,"years"]
[]
[]
[null,"CA & RESET RINS \nDNSP & TNSP","dms_020603_01_UOM"]
[null,null,"0's"]
[null,null,"0's"]
[null,null,"0's"]
[null,null,"0's"]
[null,null,"(per cent)"]
[]
[]
[null,"EB & RESET RINS \nDNSP ONLY","dms_030601_01_UOM","dms_030601_02_UOM","dms_030701_01_UOM","dms_030702_01_UOM","dms_030703_01_UOM"]
[null,null,"minutes/customer","minutes/customer","Customer / km","%","km"]
[null,null,"minutes/customer","minutes/customer","MWh/customer","Number of spans"]
[null,null,"interruptions/customer","interruptions/customer","kVA / customer","Number of spans"]
[null,null,"interruptions/customer","interruptions/customer",null,"Number of spans"]
[null,null,null,null,null,"Number of spans"]
[null,null,null,null,null,"Years"]
[null,null,null,null,null,"Years"]
[null,null,null,null,null,"Trees"]
[null,null,null,null,null,"Trees"]
[null,null,null,null,null,"Defects"]
[null,null,null,null,null,"Defects"]
[null,null,null,null,null,"Spans"]
[null,null,null,null,null,"km"]
[null,null,null,null,null,"Spans"]
[]
[null,null,"WHEN INSERTING COVER SHEET INTO A TNSP FILE - APPLY THESE NAMED RANGES"]
[null,"EB & RESET RINS \nTNSP ONLY","dms_030601_01_UOM",null,"dms_030701_01_UOM","dms_030702_01_UOM"]
[null,null,"%",null,"Number of spans","km"]
[null,null,"number",null,"Years","%"]
[null,null,"number",null,"Trees","km"]
[null,null,"%",null,"Defects","number"]
[null,null,"number",null,"Number of spans"]
[null,null,"number",null,"km"]
[null,null,"%",null,"km"]
[null,null,"number",null,"Number of spans"]
[null,null,"number"]
[null,null,"%"]
[null,null,"number"]
[null,null,"%"]
[null,null,"number"]
[null,null,"%"]
[null,null,"number"]
[]
[null,"EB & RESET RINS \nDNSP & TNSP","dms_EB_RAB_PIT"]
[null,null,"Beginning of year"]
[null,null,"End of year"]
[null,null,"End of year"]
[null,null,"End of year"]
[null,null,"End of year"]
[null,null,"End of year"]
[]
[null,"ARR \nDNSP ONLY","dms_030605_UOM","dms_03060703_UOM","Spare","Spare"]
[null,null,"number","number"]
[null,null,"number","number"]
[null,null,"number","number"]
[null,null,"number","number"]
[null,null,"number","(per cent)"]
[null,null,"number"]
[null,null,"number"]
[null,null,"number"]
[null,null,"number"]
[null,null,"number"]
[null,null,"number"]
[null,null,"number"]
[null,null,"(per cent)"]
[null,null,"(per cent)",""]
[]
[null,"RFM","dms_Beg","dms_Mid","dms_End"]
[null,null,"Beginning of year","Mid year","End of Year"]
[]
[null,"PTRM","dms_PTRM_RAB_PIT","dms_PTRM_TAB_PIT","DMS_Xfactor"]
[null,null,"Beginning of year","Beginning of year","x factors"]
[null,null,"End of year","End of year"]
[null,null,"End of year","End of year"]
[null,null,"End of year","End of year"]
[null,null,"End of year"]
[]
[]
[null,"STPIS & MIC NAMED RANGES "]
[]
[null,"These \"row descriptions\" are the column headings in the various templates but become row descriptions in the ETL process"]
[]
[null,"Table 6.3 sustained interruptions - row descriptions","dms_060301_CustNo_Affected_Row","dms_060301_Avg_Duration_Sustained_Int_Row","dms_060301_Effect_unplanned_SAIDI_Row","dms_060301_Effect_unplanned_SAIFI_Row"]
[null,null,"Number of customers affected by the interruption","Average duration of sustained customer interruption","Effect on unplanned SAIDI","Effect on unplanned SAIFI"]
[]
[]
[null,"Table 6.1 telephone answering - row descriptions and start date","dms_060101_Rows","dms_060102_Rows","dms_060101_StartDateTxt"]
[null,null,"Total number of calls \n(after removing excluded events)","Number of calls answered within 30 seconds \n(after excluding excluded events) ",{"$f":"dms_060701_StartDateTxt","v":"1-Jan-2009"}]
[]
[]
[null,"Table 6.8.1 - row descriptions","dms_060801_01_Rows","dms_060801_02_Rows","dms_060801_03_Rows","dms_060801_04_Rows"]
[null,null,"Number of interruptions","Duration of interruptions","Total unplanned minutes off supply","Effect on unplanned MAIFI"]
[]
[]
[null,"Table 7.9.4 - market impact component - row descriptions","dms_070904_01_Rows","without exclusions","with exclusions"]
[]
[]
[null,"These headings (Lists) are determined from the INDEX/MATCH function on the NSP selected on the Business & other details sheet"]
[]
[null,"Table 6.7.1 - daily performance data - unplanned - MAIFI  -- row descriptions and header named range values","dms_060701_Feeder_Header_Lvl4",{"$f":"INDEX(dms_FeederName_1,MATCH(dms_TradingName,dms_TradingName_List))","v":"CBD"},{"$f":"INDEX(dms_FeederName_1,MATCH(dms_TradingName,dms_TradingName_List))","v":"CBD"},{"$f":"INDEX(dms_FeederName_2,MATCH(dms_TradingName,dms_TradingName_List))","v":"Urban"},{"$f":"INDEX(dms_FeederName_2,MATCH(dms_TradingName,dms_TradingName_List))","v":"Urban"},{"$f":"INDEX(dms_FeederName_3,MATCH(dms_TradingName,dms_TradingName_List))","v":"Short rural"},{"$f":"INDEX(dms_FeederName_3,MATCH(dms_TradingName,dms_TradingName_List))","v":"Short rural"},{"$f":"INDEX(dms_FeederName_4,MATCH(dms_TradingName,dms_TradingName_List))","v":"Long rural"},{"$f":"INDEX(dms_FeederName_4,MATCH(dms_TradingName,dms_TradingName_List))","v":"Long rural"},{"$f":"IF((INDEX(dms_FeederName_5,MATCH(dms_TradingName,dms_TradingName_List))=0),\"Network\",(INDEX(dms_FeederName_5,MATCH(dms_TradingName,dms_TradingName_List))))","v":"Network"},{"$f":"IF((INDEX(dms_FeederName_5,MATCH(dms_TradingName,dms_TradingName_List))=0),\"Network\",(INDEX(dms_FeederName_5,MATCH(dms_TradingName,dms_TradingName_List))))","v":"Network"},"Network","Network"]
[]
[null,null,"dms_060701_Rows","All events","After removing excluded events","All events","After removing excluded events","All events","After removing excluded events","All events","After removing excluded events","All events","After removing excluded events","All events","After removing excluded events"]
[null,null,null,"the number of column headings changes from 10 to 12 depending on the number of feeder categories for the NSP"]
[]
[null,null,"dms_0603_FeederList",{"$f":"INDEX(dms_FeederName_1,MATCH(dms_TradingName,dms_TradingName_List))","v":"CBD"},{"$f":"INDEX(dms_FeederName_2,MATCH(dms_TradingName,dms_TradingName_List))","v":"Urban"},{"$f":"INDEX(dms_FeederName_3,MATCH(dms_TradingName,dms_TradingName_List))","v":"Short rural"},{"$f":"INDEX(dms_FeederName_4,MATCH(dms_TradingName,dms_TradingName_List))","v":"Long rural"}]
[]
[]
[null,"Use these to add to specific worksheets in existing files","Use these to add to specific worksheets in existing files"]
[]
[]
[null,"ARRs 6.7 STPIS daily performance","dms_060101_Values","dms_060102_Values","dms_060701_Values"]
[null,null,"dms_LeapYear"]
[]
[]
[null,"ARR's  6.8 STPIS exclusions","dms_060801_Event_Date","dms_060801_OutageID","dms_060801_FeederID","dms_060801_FeederClass","dms_060801_CauseID","dms_060801_01_Values","dms_060801_02_Values","dms_060801_03_Values","dms_060801_Excl_Cat","dms_060801_04_Values"]
[null,null,"dms_060801_StartCell"]
[]
[]
[null,"CA 6.3 sustained interruptions","dms_060301_Event_Date","dms_060301_Event_Time","dms_060301_AssetID","dms_060301_FeederClass","dms_060301_Reason","dms_060301_DetailedReason","dms_060301_CustNo_Affected_Values","dms_060301_Avg_Duration_Sustained_Int_Values","dms_060301_Effect_unplanned_SAIDI_Values","dms_060301_Effect_unplanned_SAIFI_Values","dms_060301_MED"]

{"sheet":"AER lookups","index":3,"n_rows":88,"n_cols":38,"rows_kept":88,"cut":false,"hidden":true,"merged":[[6,25,6,36],[22,1,22,4],[8,25,8,28],[8,31,8,35],[8,36,10,36]]}
[null,"AER LOOKUP TABLES"]
[]
[null,"Data in these columns used for data validation and database purposes."]
[null,"Date last modified:","2017-01-16","added (Albury and Victora) for AGN"]
[null,null,"2016-10-17","updated TransGrid's correct legal name, corrected TasNetworks (T) to June financial year"]
[null,null,"2017-02-01","inserted Power and Water, added NRs (dms_FeederCat_1 and dms_FeederCat_2)"]
[null,null,"2017-03-03","inserted AEMO as a business",null,null,null,null,null,null,null,null,null,null,null,null,null,null,null,null,null,null,null,null,null,"FOR ELECTRICITY BUSINESSES ONLY"]
[null,null,"2018-03-28","major changes to accommodate STPIS"]
[null,null,"Template Version",5,null,null,null,null,null,null,null,null,null,null,null,null,null,null,null,null,null,null,null,null,null,"Feeder Types",null,null,null,"TasNetworks (D)","MAIFI flag","Feeder Names"]
[]
[null,null,null,null,null,null,null,null,null,null,null,null,null,null,null,null,null,null,null,null,null,null,null,null,null,"CBD","Urban","Short rural","Long rural","EXTRA"]
[null,"dms_TradingName_List","dms_TradingNameFull_List","dms_ABN_List","dms_JurisdictionList","dms_Sector_List","dms_Segment_List","dms_FormControl_List","dms_RPT_List","dms_RPTMonth_List","dms_CRCPlength_List","dms_FRCPlength_List","dms_PRCPlength_List","dms_663_List","dms_DeterminationRef_List","dms_Addr1_List","dms_Addr2_List","dms_Suburb_List","dms_State_List","dms_PostCode_List","dms_PAddr1_List","dms_PAddr2_List","dms_PSuburb_List","dms_PState_List","dms_PPostCode_List","dms_CBD_flag","dms_Urban_flag","dms_ShortRural_flag","dms_LongRural_flag","dms_FeederType_5_flag","dms_MAIFI_flag_List","dms_FeederName_1","dms_FeederName_2","dms_FeederName_3","dms_FeederName_4","dms_FeederName_5","dms_Public_Lighting_List","Name"]
[null,"AusNet (D)","AusNet Electricity Services Pty Ltd",91064651118,"Vic","Electricity","Distribution","Revenue cap","Calendar","December",5,5,5,2,"2016-20 Distribution Determination","Level 32","2 Southbank Boulevard","SOUTHBANK","Vic",3006,"Locked Bag 14051",null,"MELBOURNE CITY MAIL CENTRE","Vic",8001,"NO","YES","YES","YES","NO","YES","CBD","Urban","Short rural","Long rural",null,"YES",{"$f":"B13","v":"AusNet (D)"}]
[null,"Australian Distribution Co. (Vic)","Australian Distribution Co. (Victoria)",11222333444,"Vic","Electricity","Distribution","Revenue cap","Calendar","December",5,5,5,2,"distribution determination","123 Straight Street",null,"MELBOURNE","Vic",3000,"PO Box 123",null,"MELBOURNE","Vic",3000,"NO","NO","NO","NO","NO","YES","CBD","Urban","Short rural","Long rural",null,"YES","Australian Distribution Co. (Vic)"]
[null,"CitiPower","CitiPower",76064651056,"Vic","Electricity","Distribution","Revenue cap","Calendar","December",5,5,5,2,"2016-20 Distribution Determination","40 Market Street",null,"MELBOURNE","Vic",3000,"Locked Bag 14090",null,"MELBOURNE","Vic",8001,"YES","YES","NO","NO","NO","YES","CBD","Urban","Short rural","Long rural",null,"YES","CitiPower"]
[null,"Jemena Electricity","Jemena Electricity",82064651083,"Vic","Electricity","Distribution","Revenue cap","Calendar","December",5,5,5,2,"2016-20 Distribution Determination","Level 16","567 Collins Street","MELBOURNE","Vic",3000,"PO Box 16182",null,"MELBOURNE","Vic",8001,"NO","YES","YES","NO","NO","YES","CBD","Urban","Short rural","Long rural",null,"YES","Jemena Electricity"]
[null,"Powercor Australia","Powercor Australia",89064651109,"Vic","Electricity","Distribution","Revenue cap","Calendar","December",5,5,5,2,"2016-20 Distribution Determination","40 Market Street",null,"MELBOURNE","Vic",3000,"Locked bag 14090",null,"MELBOURNE","Vic",8001,"NO","NO","YES","YES","NO","YES","CBD","Urban","Short rural","Long rural",null,"YES","Powercor Australia"]
[null,"United Energy","United Energy",70064651029,"Vic","Electricity","Distribution","Revenue cap","Calendar","December",5,5,5,2,"2016-20 Distribution Determination","43-45 Centreway",null,"MOUNT WAVERLEY","Vic",3149,"PO Box 449",null,"MOUNT WAVERLEY","Vic",3170,"NO","NO","YES","NO","NO","YES","CBD","Urban","Short rural","Long rural",null,"YES","United Energy"]
[]
[]
[]
[]
[null,"The Reg Year Ending (dms_RYE) must be set to the last year of the regulatory period. For forecast data is is usually (FRCP_y5) for actual it is a single year (CRY). For historical actual data the RYE will need to be set manually in the business details sheet by setting the dms_Multiyear_flag to 1 and putting the correct value in 'dms_Specified_FinalYear. See cells C67:C68"]
[null,"dms_Model_List ","dms_Model_Name_Format1","dms_Worksheet_List","dms_Model_Span_List"]
[null,"ARR","Annual Reporting",{"$f":"IF(dms_MultiYear_ResponseFlag=\"yes\",\"NEW HISTORICAL ANNUAL REPORTING\",\"ANNUAL REPORTING\")","v":"NEW HISTORICAL ANNUAL REPORTING"},1]
[null,"CA","Category Analysis",{"$f":"IF(dms_MultiYear_ResponseFlag=\"yes\",\"NEW HISTORICAL - CALENDAR YEARS\",\"CATEGORY ANALYSIS\")","v":"NEW HISTORICAL - CALENDAR YEARS"},1]
[null,"CESS","Capitlal Expenditure","CAPITLAL EXPENDITURE SHARING SCHEMING",5]
[null,"CPI","CPI","CPI",5]
[null,"EB","Economic Benchmarking",{"$f":"IF(dms_MultiYear_ResponseFlag=\"yes\",\"NEW HISTORICAL ECONOMIC BENCHMARKING\",\"ECONOMIC BENCHMARKING\")","v":"NEW HISTORICAL ECONOMIC BENCHMARKING"},1]
[null,"Pricing","Pricing Proposal","PRICING PROPOSAL",5]
[null,"PTRM","Post Tax Revenue Model","POST TAX REVENUE MODEL",5]
[null,"Reset","Regulatory Reporting (Reset)","REGULATORY REPORTING STATEMENT",5]
[null,"RFM","Roll Forward Model","ROLL FORWARD MODEL",5]
[null,"WACC","Weighted Average Cost of Capital","WEIGHTED AVERAGE COST OF CAPITAL",1]
[]
[]
[]
[null,"Financial","Calendar",null,"PREVIOUS",null,"CURRENT",null,"FORTHCOMING"]
[null,"1987-88","1988","PRCP_y1",{"$f":"INDEX(INDIRECT(dms_RPT),dms_PRCP_start_row)","v":"1999"},"CRCP_y1",{"$f":"INDEX(INDIRECT(dms_RPT),dms_CRCP_start_row)","v":"2004"},{"$f":"FRCP_y1","v":"2009"},{"$f":"INDEX(INDIRECT(dms_RPT),dms_FRCP_start_row)","v":"2009"}]
[null,"1988-89","1989","PRCP_y2",{"$f":"INDEX(INDIRECT(dms_RPT),dms_PRCP_start_row+1)","v":"2000"},"CRCP_y2",{"$f":"INDEX(INDIRECT(dms_RPT),dms_CRCP_start_row+1)","v":"2005"},"FRCP_y2",{"$f":"INDEX(INDIRECT(dms_RPT),dms_FRCP_start_row+1)","v":2010}]
[null,"1989-90","1990","PRCP_y3",{"$f":"INDEX(INDIRECT(dms_RPT),dms_PRCP_start_row+2)","v":"2001"},"CRCP_y3",{"$f":"INDEX(INDIRECT(dms_RPT),dms_CRCP_start_row+2)","v":"2006"},"FRCP_y3",{"$f":"INDEX(INDIRECT(dms_RPT),dms_FRCP_start_row+2)","v":2011}]
[null,"1990-91","1991","PRCP_y4",{"$f":"INDEX(INDIRECT(dms_RPT),dms_PRCP_start_row+3)","v":"2002"},"CRCP_y4",{"$f":"INDEX(INDIRECT(dms_RPT),dms_CRCP_start_row+3)","v":"2007"},"FRCP_y4",{"$f":"INDEX(INDIRECT(dms_RPT),dms_FRCP_start_row+3)","v":2012}]
[null,"1991-92","1992","PRCP_y5",{"$f":"INDEX(INDIRECT(dms_RPT),dms_PRCP_start_row+4)","v":"2003"},"CRCP_y5",{"$f":"INDEX(INDIRECT(dms_RPT),dms_CRCP_start_row+4)","v":"2008"},"FRCP_y5",{"$f":"INDEX(INDIRECT(dms_RPT),dms_FRCP_start_row+4)","v":2013}]
[null,"1992-93","1993","PRCP_y6",{"$f":"INDEX(INDIRECT(dms_RPT),dms_PRCP_start_row+5)","v":"2004"},"CRCP_y6",{"$f":"INDEX(INDIRECT(dms_RPT),dms_CRCP_start_row+5)","v":"2009"},"FRCP_y6",{"$f":"INDEX(INDIRECT(dms_RPT),dms_FRCP_start_row+5)","v":2014}]
[null,"1993-94","1994","PRCP_y7",{"$f":"INDEX(INDIRECT(dms_RPT),dms_PRCP_start_row+6)","v":"2005"},"CRCP_y7",{"$f":"INDEX(INDIRECT(dms_RPT),dms_CRCP_start_row+6)","v":2010},"FRCP_y7",{"$f":"INDEX(INDIRECT(dms_RPT),dms_FRCP_start_row+6)","v":2015}]
[null,"1994-95","1995","PRCP_y8",{"$f":"INDEX(INDIRECT(dms_RPT),dms_PRCP_start_row+7)","v":"2006"},"CRCP_y8",{"$f":"INDEX(INDIRECT(dms_RPT),dms_CRCP_start_row+7)","v":2011},"FRCP_y8",{"$f":"INDEX(INDIRECT(dms_RPT),dms_FRCP_start_row+7)","v":2016}]
[null,"1995-96","1996","PRCP_y9",{"$f":"INDEX(INDIRECT(dms_RPT),dms_PRCP_start_row+8)","v":"2007"},"CRCP_y9",{"$f":"INDEX(INDIRECT(dms_RPT),dms_CRCP_start_row+8)","v":2012},"FRCP_y9",{"$f":"INDEX(INDIRECT(dms_RPT),dms_FRCP_start_row+8)","v":2017}]
[null,"1996-97","1997","PRCP_y10",{"$f":"INDEX(INDIRECT(dms_RPT),dms_PRCP_start_row+9)","v":"2008"},"CRCP_y10",{"$f":"INDEX(INDIRECT(dms_RPT),dms_CRCP_start_row+9)","v":2013},"FRCP_y10",{"$f":"INDEX(INDIRECT(dms_RPT),dms_FRCP_start_row+9)","v":2018}]
[null,"1997-98","1998","PRCP_y11",{"$f":"INDEX(INDIRECT(dms_RPT),dms_PRCP_start_row+10)","v":"2009"},"CRCP_y11",{"$f":"INDEX(INDIRECT(dms_RPT),dms_CRCP_start_row+10)","v":2014},"FRCP_y11",{"$f":"INDEX(INDIRECT(dms_RPT),dms_FRCP_start_row+10)","v":2019}]
[null,"1998-99","1999","PRCP_y12",{"$f":"INDEX(INDIRECT(dms_RPT),dms_PRCP_start_row+11)","v":2010},"CRCP_y12",{"$f":"INDEX(INDIRECT(dms_RPT),dms_CRCP_start_row+11)","v":2015},"FRCP_y12",{"$f":"INDEX(INDIRECT(dms_RPT),dms_FRCP_start_row+11)","v":2020}]
[null,"1999-00","2000","PRCP_y13",{"$f":"INDEX(INDIRECT(dms_RPT),dms_PRCP_start_row+12)","v":2011},"CRCP_y13",{"$f":"INDEX(INDIRECT(dms_RPT),dms_CRCP_start_row+12)","v":2016},"FRCP_y13",{"$f":"INDEX(INDIRECT(dms_RPT),dms_FRCP_start_row+12)","v":2021}]
[null,"2000-01","2001","PRCP_y14",{"$f":"INDEX(INDIRECT(dms_RPT),dms_PRCP_start_row+13)","v":2012},"CRCP_y14",{"$f":"INDEX(INDIRECT(dms_RPT),dms_CRCP_start_row+13)","v":2017},"FRCP_y14",{"$f":"INDEX(INDIRECT(dms_RPT),dms_FRCP_start_row+13)","v":2022}]
[null,"2001-02","2002","PRCP_y15",{"$f":"INDEX(INDIRECT(dms_RPT),dms_PRCP_start_row+14)","v":2013},"CRCP_y15",{"$f":"INDEX(INDIRECT(dms_RPT),dms_CRCP_start_row+14)","v":2018},"FRCP_y15",{"$f":"INDEX(INDIRECT(dms_RPT),dms_FRCP_start_row+14)","v":2023}]
[null,"2002-03","2003","PRCP_y16",{"$f":"INDEX(INDIRECT(dms_RPT),dms_PRCP_start_row+15)","v":2014},"CRCP_y16",{"$f":"INDEX(INDIRECT(dms_RPT),dms_CRCP_start_row+15)","v":2019},"FRCP_y16",{"$f":"INDEX(INDIRECT(dms_RPT),dms_FRCP_start_row+15)","v":2024}]
[null,"2003-04","2004"]
[null,"2004-05","2005"]
[null,"2005-06","2006",null,"CRY - FRY"]
[null,"2006-07","2007","dms_y1",{"$f":"IFERROR(INDEX(INDIRECT(dms_RPT),dms_CRY_start_row),0)","v":"2009"}]
[null,"2007-08","2008","dms_y2",{"$f":"IFERROR(INDEX(INDIRECT(dms_RPT),dms_CRY_start_row+1),0)","v":2010}]
[null,"2008-09","2009","dms_y3",{"$f":"IFERROR(INDEX(INDIRECT(dms_RPT),dms_CRY_start_row+2),0)","v":2011}]
[null,"2009-10",2010,"dms_y4",{"$f":"IFERROR(INDEX(INDIRECT(dms_RPT),dms_CRY_start_row+3),0)","v":2012}]
[null,"2010-11",2011,"dms_y5",{"$f":"IFERROR(INDEX(INDIRECT(dms_RPT),dms_CRY_start_row+4),0)","v":2013}]
[null,"2011-12",2012,"dms_y6",{"$f":"IFERROR(INDEX(INDIRECT(dms_RPT),dms_CRY_start_row+5),0)","v":2014}]
[null,"2012-13",2013,"dms_y7",{"$f":"IFERROR(INDEX(INDIRECT(dms_RPT),dms_CRY_start_row+6),0)","v":2015}]
[null,"2013-14",2014,"dms_y8",{"$f":"IFERROR(INDEX(INDIRECT(dms_RPT),dms_CRY_start_row+7),0)","v":2016}]
[null,"2014-15",2015,"dms_y9",{"$f":"IFERROR(INDEX(INDIRECT(dms_RPT),dms_CRY_start_row+8),0)","v":2017}]
[null,"2015-16",2016,"dms_y10",{"$f":"IFERROR(INDEX(INDIRECT(dms_RPT),dms_CRY_start_row+9),0)","v":2018}]
[null,"2016-17",2017,"dms_y11",{"$f":"IFERROR(INDEX(INDIRECT(dms_RPT),dms_CRY_start_row+10),0)","v":2019}]
[null,"2017-18",2018,"dms_y12",{"$f":"IFERROR(INDEX(INDIRECT(dms_RPT),dms_CRY_start_row+11),0)","v":2020}]
[null,"2018-19",2019,"dms_y13",{"$f":"IFERROR(INDEX(INDIRECT(dms_RPT),dms_CRY_start_row+12),0)","v":2021}]
[null,"2019-20",2020,"dms_y14",{"$f":"IFERROR(INDEX(INDIRECT(dms_RPT),dms_CRY_start_row+13),0)","v":2022}]
[null,"2020-21",2021,"dms_y15",{"$f":"IFERROR(INDEX(INDIRECT(dms_RPT),dms_CRY_start_row+14),0)","v":2023}]
[null,"2021-22",2022,"dms_y16",{"$f":"IFERROR(INDEX(INDIRECT(dms_RPT),dms_CRY_start_row+15),0)","v":2024}]
[null,"2022-23",2023]
[null,"2023-24",2024]
[null,"2024-25",2025]
[null,"2025-26",2026]
[null,"2026-27",2027]
[null,"2027-28",2028]
[null,"2028-29",2029]
[null,"2029-30",2030]
[null,"2030-31",2031]
[null,"2031-32",2032]
[null,"2032-33",2033]
[null,"2033-34",2034]
[null,"2034-35",2035]
[null,"2035-36",2036]
[null,"2036-37","2037"]

{"sheet":"AER ETL","index":4,"n_rows":145,"n_cols":8,"rows_kept":145,"cut":false,"hidden":true,"merged":[[12,4,12,8],[71,1,73,1],[11,0,15,0],[18,0,25,0],[26,0,31,0],[34,0,59,0],[14,2,14,4],[32,37,32,58],[33,37,33,58],[34,37,34,58],[32,68,32,89],[33,68,33,89],[34,68,34,89]]}
[null,"AER ETL INFORMATION"]
[]
[null,"USES NAMED RANGES FLAG","yes","dms_Defined_Names_Used"]
[]
[null,"IF THIS IS AN ABC RIN - make sure the the named range CRY is applied and the named range dms_dollar_nom_UOM is applied"]
[null,"IF THIS IS A RESET RIN - make sure the named ranges CRY and dms_dollar_nom_UOM are NOT present in the workbook"]
[null,"FOR ABC RINS THAT SPAN MULTIPLE YEARS - make sure MultiYear Flag is set and final year entered as required"]
[]
[null,"Full trading name",{"$f":"INDEX(dms_TradingNameFull_List,MATCH(dms_TradingName,dms_TradingName_List))","v":"CitiPower"},null,"dms_TradingNameFull"]
[null,"Trading name",{"$f":"dms_TradingName","v":"CitiPower"}]
["Selected here","Model / RIN","CA","dms_Model"]
["Read from Business & other details","Source",{"$f":"dms_Selected_Source","v":"Regulatory proposal"},"dms_Source"]
[null,"Data quality",{"$f":"dms_Selected_Quality","v":"Consolidated"},"dms_DQ_1"]
[null,"Data status","Public","dms_DQ_2"]
[null,"Amendment reason",{"$f":"dms_Amendment_Text","v":"."},null,null,"dms_AmendmentReason"]
[null,"Submission date",{"$f":"dms_Typed_Submission_Date","v":"2020-01-31"},"dms_SubmissionDate"]
[]
["Redundant","EBSS - First application of scheme in forthcoming period?","No"]
["Pre-populated from lookup table","Data ingestion data quality",{"$f":"dms_Selected_Quality","v":"Consolidated"},"dms_DataQuality","=IF(dms_DQ_2=\"Confidential\",\"Consolidated\",\"Public\")"]
[null,"Sector",{"$f":"INDEX(dms_Sector_List,MATCH(dms_TradingName,dms_TradingName_List))","v":"Electricity"},"dms_Sector","=INDEX(dms_Sector_List,MATCH(dms_TradingName,dms_TradingName_List))"]
[null,"Segment",{"$f":"INDEX(dms_Segment_List,MATCH(dms_TradingName,dms_TradingName_List))","v":"Distribution"},"dms_Segment","=INDEX(dms_Segment_List,MATCH(dms_TradingName,dms_TradingName_List))"]
[null,"Regulatory Year Ending",{"$f":"dms_RYE_result","v":"2018"},"dms_RYE","=IF(dms_MultiYear_Flag=1,LEFT(dms_Specified_FinalYear,2)&RIGHT(dms_Specified_FinalYear,2),INDEX(dms_RYE_Formula_Result,MATCH(dms_Model,dms_Model_List)))"]
[null,"Reporting Period Type",{"$f":"INDEX(dms_RPT_List,MATCH(dms_TradingName,dms_TradingName_List))","v":"Calendar"},"dms_RPT","=INDEX(dms_RPT_List,MATCH(dms_TradingName,dms_TradingName_List))"]
[null,"EB/CA Unit of Measure for Monetary Values","$0s","dms_dollar_nom_UOM","If the cover sheet is attached to an ABC RIN apply the NAMED RANGE to the cell"]
[null,"Security Classification","Public","dms_Classification","Always Public"]
[null,"Jurisdiction",{"$f":"INDEX(dms_JurisdictionList,MATCH(dms_TradingName,dms_TradingName_List))","v":"Vic"},"dms_Jurisdiction","=INDEX(dms_JurisdictionList,MATCH(dms_TradingName,dms_TradingName_List))"]
["Relevant for PTRM, RFMs and Reset RINS","$ REAL REFERENCES"]
[null,"Does the named range CRY exist in this file? ",{"$f":"IFERROR(CRY,\"NO\")","v":"2009"}]
[null,"CRY-1  (last full calendar year before CRY)",{"$f":"IFERROR(IF(dms_RPT=\"calendar\",CRY-1,LEFT(CRY,4)),\"CRY not present\")","v":2008},"dms_Cal_Year_B4_CRY","'=IF(dms_RPT=\"financial\",VALUE(LEFT(dms_SingleYear_FinalYear_Result,4)),VALUE(LEFT(dms_SingleYear_FinalYear_Result,4)-1))"]
[null,"Dollar $ real month",{"$f":"INDEX(dms_RPTMonth_List,MATCH(dms_TradingName,dms_TradingName_List))","v":"December"},"dms_RPTMonth","=INDEX(dms_RPTMonth_List,MATCH(dms_TradingName,dms_TradingName_List))"]
[null,"Dollar $ real  (the last month before the FRCP_y1)",{"$f":"IF(dms_SingleYearModel=\"yes\",CONCATENATE(dms_RPTMonth)&\" \"&VALUE((LEFT(CRY,2))&RIGHT(CRY,2)),CONCATENATE(dms_RPTMonth)&\" \"&dms_DollarReal_year)","v":"December 2009"},"dms_DollarReal","=IF(SUM(dms_SingleYear_Model)>0,CONCATENATE(dms_RPTMonth)&\" \"&VALUE((LEFT(CRY,2))&RIGHT(CRY,2)),CONCATENATE(dms_RPTMonth)&\" \"&VALUE((LEFT(dms_RYE,2)&RIGHT(dms_RYE,2))))"]
[null,"Dollar $ real previous year (PRCP_y5)",{"$f":"IF(dms_SingleYearModel=\"yes\",CONCATENATE(dms_RPTMonth)&\" \"&VALUE((LEFT(CRY,2))&RIGHT(CRY,2)),CONCATENATE(dms_RPTMonth)&\" \"&dms_Previous_DollarReal_year)","v":"December 2009"},"dms_DollarReal_Prev","=IF(SUM(dms_SingleYear_Model)>0,CONCATENATE(dms_RPTMonth)&\" \"&VALUE(((LEFT(CRY,2))&RIGHT(CRY,2))-1),CONCATENATE(dms_RPTMonth)&\" \"&VALUE(((LEFT(dms_CRCP_FirstYear_Result,2)&RIGHT(dms_CRCP_FirstYear_Result,2))))-1)"]
[null,"PTRM/ RFMs"]
[null,"Form of control",{"$f":"INDEX(dms_FormControl_List,MATCH(dms_TradingName,dms_TradingName_List))","v":"Revenue cap"},"dms_FormControl","=INDEX(dms_FormControl_List,MATCH(dms_TradingName,dms_TradingName_List))"]
["All potential values for Regulatory Years or RYEs as calculated","This block works out the various RYE's for ALL RIN types and MODELS"]
[null,"dms_start_year",{"$f":"FRCP_y1","v":"2009"},"=FRCP_y1","FRCP_y1 from cover sheet"]
[null,"dms_CRY_start_year",{"$f":"IFERROR(CRY,CRCP_y4)","v":"2009"},"=IFERROR(CRY,CRCP_y4)"]
[null,"dms_CRY_start_row",{"$f":"IFERROR(MATCH(dms_CRY_start_year,INDIRECT(dms_RPT),0),0)","v":22},"=IFERROR(MATCH(dms_CRY_start_year,INDIRECT(dms_RPT),0),0)"]
[null,"dms_FRCP_start_row",{"$f":"MATCH(dms_start_year,INDIRECT(dms_RPT),0)","v":22},"=MATCH(dms_start_year,INDIRECT(dms_RPT),0)","Uses FRCP_y1 as a start reference"]
[null,"dms_CRCP_start_row",{"$f":"dms_FRCP_start_row-dms_CRCPlength_Num","v":17},"=dms_FRCP_start_row-dms_CRCPlength_Num","Uses the value in dms_CRCPlength_Num"]
[null,"dms_PRCP_start_row",{"$f":"dms_FRCP_start_row-dms_CRCPlength_Num-dms_PRCPlength_Num","v":12},"=dms_FRCP_start_row-dms_CRCPlength_Num-dms_PRCPlength_Num","Uses the value in dms_CRCPlength_Num and dms_PRCPlength_Num"]
[null,"dms_RYE_start_row",{"$f":"dms_FRCP_start_row+(dms_FRCPlength_Num-1)","v":26},"=dms_FRCP_start_row+(dms_FRCPlength_Num-1)","Uses the value in dms_FRCPlength_Num-1"]
[null,"FRCP_start_year",{"$f":"INDEX(INDIRECT(dms_RPT),dms_FRCP_start_row)","v":"2009"},"=INDEX(INDIRECT(dms_RPT),dms_FRCP_start_row)","Converts the FRCP start row to display the year"]
[null,"CRCP_start_year",{"$f":"INDEX(INDIRECT(dms_RPT),dms_CRCP_start_row)","v":"2004"},"=INDEX(INDIRECT(dms_RPT),dms_CRCP_start_row)","Converts the CRCP start row to display the year"]
[null,"PRCP_start_year",{"$f":"INDEX(INDIRECT(dms_RPT),dms_PRCP_start_row)","v":"1999"},"=INDEX(INDIRECT(dms_RPT),dms_PRCP_start_row)","Converts the PRCP start row to display the year"]
[null,"FRCP_final_year",{"$f":"INDEX(INDIRECT(dms_RPT),dms_FRCP_start_row+dms_FRCPlength_Num-1)","v":2013},"=INDEX(INDIRECT(dms_RPT),dms_FRCP_start_row+dms_FRCPlength_Num-1)","Finds the FRCP final year"]
[null,"CRCP_final_year",{"$f":"INDEX(INDIRECT(dms_RPT),dms_CRCP_start_row+dms_CRCPlength_Num-1)","v":"2008"},"=INDEX(INDIRECT(dms_RPT),dms_CRCP_start_row+dms_CRCPlength_Num-1)","Finds the CRCP final year"]
[null,"PRCP_final_year",{"$f":"INDEX(INDIRECT(dms_RPT),dms_PRCP_start_row+dms_FRCPlength_Num-1)","v":"2003"},"=INDEX(INDIRECT(dms_RPT),dms_PRCP_start_row+dms_FRCPlength_Num-1)","Finds the PRCP final year"]
[null,"dms_Reset_final_year",{"$f":"INDEX(INDIRECT(dms_RPT),dms_RYE_start_row)","v":2013},"=INDEX(INDIRECT(dms_RPT),dms_RYE_start_row)","For Resets and PTRM/RFMs (same as FRCP_final_year)"]
[null,"dms_SpecifiedYear_final_year",{"$f":"FRY","v":2018},"=FRY","FRY from cover sheet"]
[null,"dms_DollarReal_year",{"$f":"LEFT(CRCP_final_year,2)&RIGHT(CRCP_final_year,2)","v":"2008"},"=LEFT(CRCP_final_year,2)&RIGHT(CRCP_final_year,2)","Uses the value in CRCP_final_year"]
[null,"dms_Previous_DollarReal_year",{"$f":"LEFT(PRCP_final_year,2)&RIGHT(PRCP_final_year,2)","v":"2003"},"=LEFT(PRCP_final_year,2)&RIGHT(PRCP_final_year,2)","Uses the value in PRCP_final_year"]
[null,"dms_CRY_RYE",{"$f":"IFERROR(LEFT(CRY,2)&RIGHT(CRY,2),0)","v":"2009"},"=IFERROR(LEFT(CRY,2)&RIGHT(CRY,2),0)","For ABC single year RINS"]
[null,"dms_Reset_RYE",{"$f":"IF(dms_Model_Span>1,IF(dms_Model=\"RFM\",(LEFT(dms_DollarReal_year,2)&RIGHT(dms_DollarReal_year,2)),(LEFT(dms_Reset_final_year,2)&RIGHT(dms_Reset_final_year,2))),0)","v":0},"=IF(dms_Model_Span>1,IF(dms_Model=\"RFM\",(LEFT(dms_DollarReal_year,2)&RIGHT(dms_DollarReal_year,2)),(LEFT(dms_Reset_final_year,2)&RIGHT(dms_Reset_final_year,2))),0)","If model span > 1 then uses dms_Reset_RYE otherwise it's a multi year ABC and uses dms_Specified_RYE"]
[null,"dms_Specified_RYE",{"$f":"IF(dms_MultiYear_ResponseFlag=\"Yes\",(LEFT(dms_Specified_FinalYear,2)&RIGHT(dms_Specified_FinalYear,2)),0)","v":"2018"},"=IF(dms_MultiYear_ResponseFlag=\"Yes\",(LEFT(dms_Specified_FinalYear,2)&RIGHT(dms_Specified_FinalYear,2)),0)","If multi year ABC - uses dms_Specified_FinalYear"]
[null,"dms_Model_Span",{"$f":"INDEX(dms_Model_Span_List,MATCH(dms_Model,dms_Model_List))","v":1},"=INDEX(dms_Model_Span_List,MATCH(dms_Model,dms_Model_List))","A result of 5 is used to signify that it is more than 1 year span"]
[null,"dms_RYE_result",{"$f":"IF(dms_MultiYear_ResponseFlag=\"yes\",dms_Specified_RYE,(IF(dms_Model_Span>1,dms_Reset_RYE,dms_CRY_RYE)))","v":"2018"},"=IF(dms_MultiYear_ResponseFlag=\"yes\",dms_Specified_RYE,(IF(dms_Model_Span>1,dms_Reset_RYE,dms_CRY_RYE)))","Nested IF - feeds into dms_RYE"]
[null,"dms_Reset_Span",{"$f":"IF(dms_Reset_RYE>0,CONCATENATE(FRCP_y1,\" to \",FRCP_final_year),0)","v":0},"=IF(dms_Reset_RYE>0,CONCATENATE(FRCP_y1,\" to \",FRCP_final_year),0)","Reset span of years as text"]
[null,"dms_SpecifiedYear_Span",{"$f":"IF(dms_Specified_RYE>0,CONCATENATE(CRY,\" to \",dms_Specified_FinalYear),0)","v":"2009 to 2018"},"=IF(dms_Specified_RYE>0,CONCATENATE(CRY,\" to \",dms_Specified_FinalYear),0)","Multi year ABC span of years as text"]
[null,"dms_Header_Span",{"$f":"IF(dms_MultiYear_Flag=1,dms_SpecifiedYear_Span,IF(dms_Model_Span>1,dms_Reset_Span,CRY))","v":"2009 to 2018"},"=IF(dms_MultiYear_Flag=1,dms_SpecifiedYear_Span,IF(dms_Model_Span>1,dms_Reset_Span,CRY))","NESTED IF - for Sheet Headers"]
[null,"ABC RINS THAT SPAN MULTIPLE YEARS"]
[null,"This is a multi year ABC RIN?","Yes"]
[null,null,{"$f":"IF(dms_MultiYear_ResponseFlag=\"No\",0,1)","v":1},"dms_MultiYear_Flag","This is set from the answer provided above"]
[null,null,{"$f":"IF(dms_MultiYear_Flag=1,FRY,\"not a Multiple year submission\")","v":2018},"dms_Specified_FinalYear","The result here is returned to dms_CRCP_FinalYear_Result if response to Q in C73 is \"yes\" and dms_MultiYear_Flag is set to 1"]
[null," Start year for 5.2 in Multi year ABC RINS",{"$f":"IFERROR(IF(dms_MultiYear_Flag=1,FRY,CRY),\"not an ABC\")","v":2018},"dms_0502_Inst_Year","=IF(dms_MultiYear_Flag=1,FRY,CRY)",null,"For single year RINS this is CRY - multi year RINS need to start a the end of the span of years (ie. FRY)"]
[null,"WHAT IS THE RYE?"]
[null,"Reg Period Lengths"]
[null,"PRCP length in years",{"$f":"INDEX(dms_PRCPlength_List,MATCH(dms_TradingName,dms_TradingName_List))","v":5},"dms_PRCPlength_Num","=INDEX(dms_PRCPlength_List,MATCH(dms_TradingName,dms_TradingName_List))"]
[null,"CRCP length in years",{"$f":"INDEX(dms_CRCPlength_List,MATCH(dms_TradingName,dms_TradingName_List))","v":5},"dms_CRCPlength_Num","=INDEX(dms_CRCPlength_List,MATCH(dms_TradingName,dms_TradingName_List))"]
[null,"FRCP length in years",{"$f":"INDEX(dms_FRCPlength_List,MATCH(dms_TradingName,dms_TradingName_List))","v":5},"dms_FRCPlength_Num","=INDEX(dms_FRCPlength_List,MATCH(dms_TradingName,dms_TradingName_List))"]
[null,"Single year RIN?"]
[null,"Single Year ABC RIN ?",{"$f":"IF(dms_Model=\"EB\",1,0)","v":0},"dms_EB"]
[null,null,{"$f":"IF(dms_Model=\"CA\",1,0)","v":1},"dms_CA","=dms_SingleYear_Model"]
[null,null,{"$f":"IF(dms_Model=\"ARR\",1,0)","v":0},"dms_ARR"]
[null,"Is this a single Year ABC RIN?",{"$f":"IF(SUM(dms_SingleYear_Model)=1,\"yes\",\"no\")","v":"yes"},"dms_SingleYearModel","=IF(SUM(dms_SingleYear_Model)=1,\"yes\",\"no\")"]
[null,"Single Year Final Year Result",{"$f":"IF(AND(dms_SingleYearModel=\"yes\",dms_MultiYear_Flag=0),CRY,0)","v":0},"dms_SingleYear_FinalYear_Result","=IFERROR(IF(SUM(dms_SingleYear_Model)<>0,(INDIRECT(dms_SingleYear_FinalYear_Ref)),\"not a single year RIN\"),\"CRY not present\")"]
[null,"Multi year RIN?"]
[]
[null,"Multi Year Reset/Model?",{"$f":"IF(dms_Model_Span>1,\"yes\",\"no\")","v":"no"}]
[null,"Final year result for Reset/Model",{"$f":"IF(dms_Model_Span>1,dms_Reset_final_year,0)","v":0},"dms_MultiYear_FinalYear_Result","dms_CRCP_FinalYear_Result"]
[]
[null,"Multi Year ABC RIN?",{"$f":"IF(dms_MultiYear_Flag=1,\"yes\",\"no\")","v":"yes"},"dms_MultiYear_ABC_RIN"]
[null,"Final year result for ABC multi year",{"$f":"IF(dms_MultiYear_Flag=1,C50,0)","v":2018}]
[]
[null,"EB RINS"]
[null,"Calendar Year for table 3.6 data",{"$f":"IFERROR(IF(dms_Segment=\"Transmission\",dms_Cal_Year_B4_CRY,CRY),\"CRY not present\")","v":"2009"},"dms_0306_Year","=IF(dms_Segment=\"Transmission\",dms_Cal_Year_B4_CRY,CRY)"]
[null,"CA RINS"]
[null,"Find how many rows in tables 6.3 sustained interruptions?",null,null,"dms_060301_MaxRows only returns a valid value when cover sheet is attached to a CA file"]
[null,null,{"$f":"IF(dms_Model<>\"CA\",\"not a CA\",\"Is a CA\")","v":"Is a CA"},null,"=IF(dms_Model<>\"CA\",\"not a CA\",\"Is a CA\")"]
[null,"dms_060301_Avg_Duration_Sustained_Int_Values present?",{"$f":"IFERROR(IF(INDEX(dms_060301_Avg_Duration_Sustained_Int_Values,1,1)<>\"\",\"yes\",\"no\"),\"no\")","v":"no"},"dms_060301_checkvalue","=IFERROR(IF(INDEX(dms_060301_Avg_Duration_Sustained_Int_Values,1,1)<>\"\",\"yes\",\"no\"),\"no\")"]
[null,null,{"$f":"IF(AND(dms_Model=\"CA\",(dms_060301_checkvalue=\"no\")),\"error - NR not present\",\"no errors\")","v":"error - NR not present"},null,"=IF(AND(dms_Model=\"CA\",(dms_060301_checkvalue=\"no\")),\"error - NR not present\",\"no errors\")"]
[null,"Table 6.3.1 - last row reference",{"$f":"IFERROR(IF(dms_Model=\"CA\",LOOKUP(2,1/(dms_060301_Avg_Duration_Sustained_Int_Values<>\"\"),(ROW(dms_060301_Avg_Duration_Sustained_Int_Values))),\"not a CA\"),\"6.3 not present\")","v":"6.3 not present"},"dms_060301_LastRow","=IFERROR(IF(dms_Model=\"CA\",LOOKUP(2,1/(dms_060301_Avg_Duration_Sustained_Int_Values<>\"\"),(ROW(dms_060301_Avg_Duration_Sustained_Int_Values))),\"not a CA\"),\"6.3 not present\")"]
[null,"Table 6.3.1 - max number rows",{"$f":"IFERROR(IF(dms_Model=\"CA\",(dms_060301_LastRow-15),\"not a CA\"),\"error\")","v":"error"},"dms_060301_MaxRows","=IFERROR(IF(dms_Model=\"CA\",(dms_060301_LastRow-15),\"not a CA\"),\"error\")"]
[null,"Table 6.6.3 - Public lighting repair - no. business days",{"$f":"INDEX(dms_663_List,MATCH(dms_TradingName,dms_TradingName_List))","v":2},"dms_663","=INDEX(dms_663_List,MATCH(dms_TradingName,dms_TradingName_List))"]
[null,"ARR or RESET RINS"]
[null,"How many rows in tables 6.1 or 6.7?  (leap year?)","insert dms_LeapYear NR if required",null,"'dms_LeapYear is used to determine dms_060701_Max_Rows BUT it is only found on worksheet 6.1 or 6.7 and the date value in the cell is used to determine whether it is a leap year"]
[null,"Is dms_LeapYear named range present?",{"$f":"IFERROR(IF(dms_LeapYear,\"yes\"),\"no\")","v":"no"}]
[null,"Table 6.7.1 - includes a leap year?",{"$f":"\nIFERROR(IF(MONTH(DATE(YEAR(dms_LeapYear),2,29))=2,\"is a leap year\",\"not a leap year\"),\n\"dms_LeapYear not present\")","v":"dms_LeapYear not present"},"dms_LeapYear_Result","=IFERROR(IF(MONTH(DATE(YEAR(dms_LeapYear),2,29))=2,\"is a leap year\",\"not a leap year\"),\"dms_LeapYear not present\")"]
[null,"MaxRows if Reset and leap year",{"$f":"IF(dms_LeapYear_Result=\"is a leap year\",1827,1826)","v":1826},"dms_060701_Reset_MaxRows","=IF(dms_LeapYear_Result=\"is a leap year\",1827,1826)",null,null,"number of days present in Reset RIN table"]
[null,"MaxRows if ARR and leap year",{"$f":"IF(dms_LeapYear_Result=\"is a leap year\",366,365)","v":365},"dms_060701_ARR_MaxRows","=IF(dms_LeapYear_Result=\"is a leap year\",366,365)",null,null,"number of days present in ARR RIN table"]
[null,"Table 6.7.1 - Max Rows (leap year/ non leap year)",{"$f":"IF(dms_Model=\"ARR\",dms_060701_ARR_MaxRows,IF(dms_Model=\"Reset\",dms_060701_Reset_MaxRows,\"not a relevant RIN type\"))","v":"not a relevant RIN type"},"dms_060701_MaxRows","=IF(dms_Model=\"ARR\",dms_060701_ARR_MaxRows,IF(dms_Model=\"Reset\",dms_060701_Reset_MaxRows,\"not a relevant RIN type\"))"]
[null,"How many columns in 6.7?   (4 or 5 feeder categories)",{"$f":"IF(dms_FifthFeeder_flag_NSP=\"NO\",\"This NSP has only 4 feeder categories\",\"This NSP has 5 feeder categories\")","v":"This NSP has only 4 feeder categories"}]
[null,"Table 6.7.1 - Last column (# of feeder categories > 4)",{"$f":"IF(dms_FifthFeeder_flag_NSP=\"NO\",10,12)","v":10},"dms_060701_MaxCols","=IF(dms_FifthFeeder_flag_NSP=\"NO\",8,10)"]
[null,"Table 6.7.1 - Number of offset rows",{"$f":"IF(dms_Model=\"ARR\",15,9)","v":9},"dms_060701_OffsetRows","=IF(dms_Model=\"ARR\",15,9)"]
[null,"Start date for telephone answering in 6.1 or 6.7?",null,null,"Using 060101 as naming standard not 060701 for start dates"]
[null,"Table 6.1.1 and 6.7.1 - Start Date as Text",{"$f":"IF(dms_SingleYearModel=\"yes\",(CONCATENATE(IF(LEN(CRY)=4,\"1-Jan-\",\"1-Jul-\"),LEFT(CRY,4))),(CONCATENATE(IF(LEN(PRCP_y4)=4,\"1-Jan-\",\"1-Jul-\"),LEFT(PRCP_y4,4))))","v":"1-Jan-2009"},"dms_060101_StartDateTxt","=IF(SUM(dms_SingleYear_Model)>1,(CONCATENATE(IF(LEN(CRY)=4,\"1-Jan-\",\"1-Jul-\"),LEFT(CRY,4))),(CONCATENATE(IF(LEN(CRCP_y4)=4,\"1-Jan-\",\"1-Jul-\"),LEFT(CRCP_y4,4))))"]
[null,"Table 6.1.1 and 6.7.1 - Start Date as Date Value",{"$f":"DATEVALUE(dms_060701_StartDateTxt)","v":39814},"dms_060101_StartDateVal","=DATEVALUE(dms_060701_StartDateTxt)"]
[null,"ARRs"]
[null,"How many rows in table 6.8?","insert dms_060801_StartCell NR if required",null,"dms_060801_StartCell is only found on worksheet 6.8 and is used to determine the starting date for the date range"]
[null,"Is dms_060801_StartCell named range present?","yes",null,"=IFERROR(IF((ROW(dms_060801_StartCell)-1)=1,\"yes\",\"yes\"),\"no\")"]
[null,"Table 6.8 - Number of offset rows",12,"dms_0608_OffsetRows","=IFERROR(IF(dms_Model=\"ARR\",(ROW(dms_060801_StartCell)-1),\"not an ARR\"),\"6.8 error\")"]
[null,"Table 6.8 - Last row","0","dms_0608_LastRow","=IFERROR(IF(dms_060801_StartCell<>\"\",IF(dms_Model=\"ARR\",(LOOKUP(2,1/(dms_060801_01_Values<>\"\"),(ROW(dms_060801_01_Values)))),\"not an ARR\"),0),\"0\")"]
[null,"Table 6.8 - MaxRows",{"$f":"IFERROR(IF(dms_Model=\"ARR\",(MAX(0,dms_0608_LastRow-dms_0608_OffsetRows)),\"not an ARR\"),\"0\")","v":"not an ARR"},"dms_060801_MaxRows","=IFERROR(IF(dms_Model=\"ARR\",(MAX(0,dms_0608_LastRow-dms_0608_OffsetRows)),\"not an ARR\"),\"0\")"]
[null,"TNSP RESET RINS"]
[null,"Table 7.9.4 only appears in TNSPs Reset RIN"]
[null,"Table 7.9.4 - first year",{"$f":"LEFT(PRCP_y3,4)","v":"2001"},"dms_070904_Start_Year","=LEFT(PRCP_y3,4)"]
[]
[null,"MISC"]
[null,"Distribution Determination Reference",{"$f":"INDEX(dms_DeterminationRef_List,MATCH(dms_TradingName,dms_TradingName_List))","v":"2016-20 Distribution Determination"},"dms_DeterminationRef"]
[null,"Public lighting NSP?",{"$f":"INDEX(dms_Public_Lighting_List,MATCH(dms_TradingName,dms_TradingName_List))","v":"YES"},"dms_Public_Lighting","=INDEX(dms_Public_Lighting_List,MATCH(dms_TradingName,dms_TradingName_List))"]
[null,"CBD Feeder for this business",{"$f":"INDEX(dms_CBD_flag,MATCH(dms_TradingName,dms_TradingName_List))","v":"YES"},"dms_CBD_flag_NSP"]
[null,"Urban Feeder for this business",{"$f":"INDEX(dms_Urban_flag,MATCH(dms_TradingName,dms_TradingName_List))","v":"YES"},"dms_Urban_flag_NSP"]
[null,"Short rural Feeder for this business",{"$f":"INDEX(dms_ShortRural_flag,MATCH(dms_TradingName,dms_TradingName_List))","v":"NO"},"dms_ShortRural_flag_NSP"]
[null,"Long rural Feeder for this business",{"$f":"INDEX(dms_LongRural_flag,MATCH(dms_TradingName,dms_TradingName_List))","v":"NO"},"dms_LongRural_flag_NSP"]
[null,"Fifth Feeder Category (eg. TasNetworks (D))",{"$f":"INDEX(dms_FeederType_5_flag,MATCH(dms_TradingName,dms_TradingName_List))","v":"NO"},"dms_FifthFeeder_flag_NSP","=INDEX(dms_FeederType_5_flag,MATCH(dms_TradingName,dms_TradingName_List))"]
[]
[null,"DISCARD FILES"]
[null,"discard this record?","NO","dms_DISCARD","If record is to be discarded from DB set this flag to YES"]
[]
[null,"SUBSET FILES"]
[null,"Is this Submission File a Subset File","NO","dms_Partial"]
[]
[]
[null,"REGULATORY YEARS FOR MULTI RYE SUBMISSIONS"]
[null,"Multiple RYE flag","YES","dms_Multi_RYE_flag"]
[null,null,"Manually specify RYE","Named ranges to apply"]
[null,null,2013,"dms_RYE_01"]
[null,null,2014,"dms_RYE_02"]
[null,null,2015,"dms_RYE_03"]
[null,null,2016,"dms_RYE_04"]
[null,null,2017,"dms_RYE_05"]
[null,null,2018,"dms_RYE_06"]
[null,null,2019,"dms_RYE_07"]
[null,null,2020,"dms_RYE_08"]
[null,null,2021,"dms_RYE_09"]

{"sheet":"Instructions","index":5,"n_rows":27,"n_cols":4,"rows_kept":27,"cut":false,"hidden":false,"merged":[[7,1,8,1],[7,2,7,3],[8,2,8,4],[1,1,1,4],[2,1,2,4],[3,1,3,4],[4,1,4,4],[5,2,5,4],[18,1,24,1],[18,2,18,4],[26,2,26,4],[10,2,10,4],[12,1,14,1],[12,2,12,4],[13,2,13,3],[14,2,14,4],[16,2,16,4]]}
[]
[null,{"$f":"CONCATENATE(dms_Sector,\" \",dms_Segment,\" \", \"Network Service Provider\")","v":"Electricity Distribution Network Service Provider"}]
[null,"New Historical RIN Template - Calendar Years"]
[null,{"$f":"CONCATENATE(\"This template is to be used by \",dms_TradingNameFull,\" to fulfil its reporting obligations to the AER.\")","v":"This template is to be used by CitiPower to fulfil its reporting obligations to the AER."}]
[null,"INSTRUCTIONS"]
[null,"GENERAL","Complete the Business & other details worksheet before entering data or values in any other worksheets. The Business & other details worksheet is linked to other worksheets within the workbook and automatically generates certain column headings and conditional formatting."]
[]
[null,"CONFIDENTIAL INFORMATION","\nPlease use the macro at the top of each \nworksheet to identify confidential information\nin the confidential workbook. \n\n"]
[null,null,"-Do this by selecting the cell or cells that contain confidential information and then run the Mark selection as CONFIDENTIAL macro. This will format the cells a specific colour that is identified by the AER's database which in turn marks that information as confidential.\n\n-To reverse this, select the cell or cells and run the Return selection to NON-CONFIDENTIAL macro."]
[]
[null,"RESPONSES","\nPlease return four (4) files to the AER: \n\n1. A confidential version which must contain a complete set of all responses with confidential information marked using the Mark selection CONFIDENTIAL macro and which has been completed using the locked template file provided by the AER. \n\n2. An actual and an estimate version with confidential information marked using the Mark selection CONFIDENTIAL macro and which has been completed using the locked template file provided by the AER.\n\n3. A public version with confidential information either removed completely or aggregated in some form together with writtten consent to disclose the public version of the response.\n\nUse the drop down box on the Business and other details worksheet to identify the file as either confidential ('consolidated') or public. "]
[]
[null,"AMENDMENTS","\nIf an NSP wishes to correct data previously submitted to the AER it should resubmit that data using the original completed submission as the starting point. Please make any necessary changes to the data. Data that is not being amended should be left unchanged. \n\nNSPs must identify the reason for the amendments in the Amendment Reason box on the  Business and other details worksheet. NSPs may provide further details regarding any amendments in the Amendments worksheet. \n\n."]
[null,null,"NSP may use Amended Data macro \nto highlight cells that contain amended data.\nNB: if data is also CONFIDENTIAL, re-apply \nthe Confidentiality macro after applying the \nAmended macro"]
[null,null,"Please resubmit two (2) files - a confidential version and a public version of the amended submission to the AER"]
[]
[null,"UNITS OF MEASURE","\nAll amounts are to be unrounded and reported on a one for one basis: that is 1000 is to be entered as '1000'. Applicable units of measure may be identified in the table column headings or row descriptors.\n\n"]
[]
[null,"INPUT / NON-INPUT CELLS"]
[null,null,null,"Yellow = Input cell (mandatory)"]
[null,null,null,"Darker yellow = input cell (mandatory)"]
[null,null,null,"Orange = input cell (if data available)"]
[null,null,null,"Grey = Not applicable/No inputs required"]
[null,null,null," \nPLEASE DO NOT ENTER TEXT into cells that are to contain numeric data."]
[]
[]
[null,"NAVIGATION","\nMany tables in the worksheets have been \"grouped\" to allow for easy navigation. To ungroup or group data use the outline symbols in the left margin (for Row groupings) or above the columns (for column groupings). \n\n\n\n"]

{"sheet":"Contents","index":6,"n_rows":16,"n_cols":5,"rows_kept":16,"cut":false,"hidden":false,"merged":[[5,3,5,4]]}
[null,null,null,{"$f":"INDEX(dms_Worksheet_List,MATCH(dms_Model,dms_Model_List))","v":"NEW HISTORICAL - CALENDAR YEARS"}]
[null,null,null,{"$f":"INDEX(dms_TradingNameFull_List,MATCH(dms_TradingName,dms_TradingName_List))","v":"CitiPower"}]
[null,null,null,{"$f":"dms_Header_Span","v":"2009 to 2018"}]
[]
[]
[null,null,null,"CONTENTS"]
[]
[null,null,null,"SUBMISSION","Business & other details"]
[]
[null,null,null,"EXPENDITURE","2.2 Repex"]
[null,null,null,null,"2.5 Connections"]
[null,null,null,null,"2.6 Non-network"]
[null,null,null,null,"2.10 Network overheads"]
[null,null,null,null,"2.11 Labour"]
[]
[null,null,null,"FINANCIAL","8.2 Capex"]

{"sheet":"Business & other details","index":7,"n_rows":74,"n_cols":79,"rows_kept":74,"cut":false,"hidden":false,"merged":[[0,7,2,15],[6,21,6,75],[24,21,24,35],[42,37,42,44],[42,46,42,53],[42,55,42,62],[42,64,42,71],[3,21,3,57],[8,16,8,93],[22,68,22,89],[23,68,23,89],[25,68,25,71],[25,80,25,82],[24,68,24,82],[25,37,25,40],[22,37,22,58],[23,37,23,58],[31,21,31,35],[22,21,22,35],[16,21,16,35],[16,37,16,48],[15,21,15,35],[15,37,15,58],[24,37,24,51],[25,21,25,35],[23,21,23,35],[45,73,45,80],[45,64,45,71],[46,73,46,80],[45,55,45,62],[50,46,50,53],[46,46,46,53],[46,37,46,44],[50,37,50,44],[31,68,31,89],[32,68,32,89],[33,68,33,89],[43,64,43,71],[43,73,43,80],[41,73,41,80],[25,49,25,51],[24,60,24,66],[25,60,25,66],[42,73,42,80],[32,21,32,35],[33,21,33,35],[33,60,33,66],[32,60,32,66],[50,73,50,80],[50,64,50,71],[46,64,46,71],[46,55,46,62],[50,55,50,62],[47,73,47,80],[51,73,51,80],[51,64,51,71],[22,60,22,66],[23,60,23,66],[31,60,31,66],[49,25,49,34],[53,25,53,34],[45,46,45,53],[45,37,45,44],[49,37,49,44],[41,46,41,53],[49,55,49,62],[49,64,49,71],[41,55,41,62],[41,64,41,71],[47,46,47,53],[47,55,47,62],[47,64,47,71],[51,55,51,62],[53,37,53,44],[49,46,49,53],[51,46,51,53],[51,37,51,44],[47,37,47,44],[73,25,73,34],[73,37,73,52],[55,25,55,34],[63,25,63,34],[65,25,65,34],[55,37,55,44],[61,25,61,34],[61,37,61,52],[31,37,31,58],[32,37,32,58],[33,37,33,58],[43,37,43,44],[43,46,43,53],[43,55,43,62],[63,37,63,52],[65,37,65,52],[67,37,67,52],[69,37,71,81],[67,25,67,34],[69,25,71,34],[49,73,49,80],[41,25,41,34],[45,25,45,34],[41,37,41,44]]}
[null,null,null,null,null,null,null,null,null,null,null,null,null,null,null,null,null,null,null,null,null,{"$f":"INDEX(dms_Worksheet_List,MATCH(dms_Model,dms_Model_List))","v":"NEW HISTORICAL - CALENDAR YEARS"}]
[null,null,null,null,null,null,null,null,null,null,null,null,null,null,null,null,null,null,null,null,null,{"$f":"INDEX(dms_TradingNameFull_List,MATCH(dms_TradingName,dms_TradingName_List))","v":"CitiPower"}]
[null,null,null,null,null,null,null,null,null,null,null,null,null,null,null,null,null,null,null,null,null,{"$f":"dms_Header_Span","v":"2009 to 2018"}]
[null,null,null,null,null,null,null,null,null,null,null,null,null,null,null,null,null,null,null,null,null,"BUSINESS & OTHER DETAILS"]
[]
[null,null,null,null,null,null,null,null,null,null,null,null,null,null,null,null,null,null,null,null,null,"INSTRUCTIONS"]
[null,null,null,null,null,null,null,null,null,null,null,null,null,null,null,null,null,null,null,null,null,"Complete the following business details regulatory template before entering data or values in any other regulatory template. This regulatory template is linked to other cells within the spreadsheet and automatically generates column headings and conditional formatting to distinguish business specific input and non-input cells. "]
[]
[null,null,null,null,null,null,null,null,null,null,null,null,null,null,null,null,"SUBMISSION PARTICULARS INPUT SHEET"]
[]
[]
[null,null,null,null,null,null,null,null,null,null,null,null,null,null,null,null,null,null,null,null,null,"ENTITY DETAILS"]
[]
[null,null,null,null,null,null,null,null,null,null,null,null,null,null,null,null,null,null,null,null,null,"Business Name"]
[]
[null,null,null,null,null,null,null,null,null,null,null,null,null,null,null,null,null,null,null,null,null,"Short name",null,null,null,null,null,null,null,null,null,null,null,null,null,null,null,"CitiPower"]
[null,null,null,null,null,null,null,null,null,null,null,null,null,null,null,null,null,null,null,null,null,"ACN/ABN",null,null,null,null,null,null,null,null,null,null,null,null,null,null,null,{"$f":"INDEX(dms_ABN_List,MATCH(dms_TradingName,dms_TradingName_List))","v":76064651056}]
[]
[]
[]
[null,null,null,null,null,null,null,null,null,null,null,null,null,null,null,null,null,null,null,null,null,"Business Address",null,null,null,null,null,null,null,null,null,null,null,null,null,null,null,null,null,null,null,null,null,null,null,null,null,null,null,null,null,null,null,null,null,null,null,null,null,null,null,null,null,null,null,null,null,null,"Postal Address"]
[]
[null,null,null,null,null,null,null,null,null,null,null,null,null,null,null,null,null,null,null,null,null,"Address 1",null,null,null,null,null,null,null,null,null,null,null,null,null,null,null,{"$f":"INDEX(dms_Addr1_List,MATCH(dms_TradingName,dms_TradingName_List))","v":"40 Market Street"},null,null,null,null,null,null,null,null,null,null,null,null,null,null,null,null,null,null,null,null,null,null,"Address 1",null,null,null,null,null,null,null,{"$f":"INDEX(dms_PAddr1_List,MATCH(dms_TradingName,dms_TradingName_List))","v":"Locked Bag 14090"}]
[null,null,null,null,null,null,null,null,null,null,null,null,null,null,null,null,null,null,null,null,null,"Address 2",null,null,null,null,null,null,null,null,null,null,null,null,null,null,null,{"$f":"IF(ISBLANK(INDEX(dms_Addr2_List,MATCH(dms_TradingName,dms_TradingName_List))),\"\",(INDEX(dms_Addr2_List,MATCH(dms_TradingName,dms_TradingName_List))))","v":""},null,null,null,null,null,null,null,null,null,null,null,null,null,null,null,null,null,null,null,null,null,null,"Address 2",null,null,null,null,null,null,null,{"$f":"IF(ISBLANK(INDEX(dms_PAddr2_List,MATCH(dms_TradingName,dms_TradingName_List))),\"\",(INDEX(dms_PAddr2_List,MATCH(dms_TradingName,dms_TradingName_List))))","v":""}]
[null,null,null,null,null,null,null,null,null,null,null,null,null,null,null,null,null,null,null,null,null,"Suburb",null,null,null,null,null,null,null,null,null,null,null,null,null,null,null,{"$f":"INDEX(dms_Suburb_List,MATCH(dms_TradingName,dms_TradingName_List))","v":"MELBOURNE"},null,null,null,null,null,null,null,null,null,null,null,null,null,null,null,null,null,null,null,null,null,null,"Suburb",null,null,null,null,null,null,null,{"$f":"INDEX(dms_PSuburb_List,MATCH(dms_TradingName,dms_TradingName_List))","v":"MELBOURNE"}]
[null,null,null,null,null,null,null,null,null,null,null,null,null,null,null,null,null,null,null,null,null,"State",null,null,null,null,null,null,null,null,null,null,null,null,null,null,null,{"$f":"INDEX(dms_State_List,MATCH(dms_TradingName,dms_TradingName_List))","v":"Vic"},null,null,null,null,null,null,null,null,null,"Post code",null,null,null,null,null,null,null,null,null,null,null,null,"State",null,null,null,null,null,null,null,{"$f":"INDEX(dms_PState_List,MATCH(dms_TradingName,dms_TradingName_List))","v":"Vic"},null,null,null,null,null,null,null,null,null,"Post code"]
[]
[null,null,null,null,null,null,null,null,null,null,null,null,null,null,null,null,null,null,null,null,null,null,null,null,null,null,null,null,null,null,null,null,null,null,null,null,null,null,null,null,null,null,null,null,null,null,null,null,null,null,null,null,"`"]
[]
[null,null,null,null,null,null,null,null,null,null,null,null,null,null,null,null,null,null,null,null,null,"Contact Names"]
[]
[null,null,null,null,null,null,null,null,null,null,null,null,null,null,null,null,null,null,null,null,null,"Name",null,null,null,null,null,null,null,null,null,null,null,null,null,null,null,"Brent Cleeve",null,null,null,null,null,null,null,null,null,null,null,null,null,null,null,null,null,null,null,null,null,null,"Name"]
[null,null,null,null,null,null,null,null,null,null,null,null,null,null,null,null,null,null,null,null,null,"Phone",null,null,null,null,null,null,null,null,null,null,null,null,null,null,null,"(03) 9683 4465",null,null,null,null,null,null,null,null,null,null,null,null,null,null,null,null,null,null,null,null,null,null,"Phone"]
[null,null,null,null,null,null,null,null,null,null,null,null,null,null,null,null,null,null,null,null,null,"Email",null,null,null,null,null,null,null,null,null,null,null,null,null,null,null,"bcleeve@powercor.com.au",null,null,null,null,null,null,null,null,null,null,null,null,null,null,null,null,null,null,null,null,null,null,"Email"]
[]
[]
[]
[]
[null,null,null,null,null,null,null,null,null,null,null,null,null,null,null,null,"REGULATORY CONTROL PERIODS"]
[]
[]
[null,null,null,null,null,null,null,null,null,null,null,null,null,null,null,null,null,null,null,null,null,null,null,null,null,"Forthcoming period",null,null,null,null,null,null,null,null,null,null,null,"2009",null,null,null,null,null,null,null,null,{"$f":"FRCP_y2","v":2010},null,null,null,null,null,null,null,null,{"$f":"FRCP_y3","v":2011},null,null,null,null,null,null,null,null,{"$f":"FRCP_y4","v":2012},null,null,null,null,null,null,null,null,{"$f":"FRCP_y5","v":2013}]
[null,null,null,null,null,null,null,null,null,null,null,null,null,null,null,null,null,null,null,null,null,null,null,null,null,null,null,null,null,null,null,null,null,null,null,null,null,{"$f":"FRCP_y6","v":2014},null,null,null,null,null,null,null,null,{"$f":"FRCP_y7","v":2015},null,null,null,null,null,null,null,null,{"$f":"FRCP_y8","v":2016},null,null,null,null,null,null,null,null,{"$f":"FRCP_y9","v":2017},null,null,null,null,null,null,null,null,{"$f":"FRCP_y10","v":2018}]
[null,null,null,null,null,null,null,null,null,null,null,null,null,null,null,null,null,null,null,null,null,null,null,null,null,null,null,null,null,null,null,null,null,null,null,null,null,{"$f":"FRCP_y11","v":2019},null,null,null,null,null,null,null,null,{"$f":"FRCP_y12","v":2020},null,null,null,null,null,null,null,null,{"$f":"FRCP_y13","v":2021},null,null,null,null,null,null,null,null,{"$f":"FRCP_y14","v":2022},null,null,null,null,null,null,null,null,{"$f":"FRCP_y15","v":2023}]
[]
[null,null,null,null,null,null,null,null,null,null,null,null,null,null,null,null,null,null,null,null,null,null,null,"RESETS",null,"Current period",null,null,null,null,null,null,null,null,null,null,null,{"$f":"CRCP_y1","v":"2004"},null,null,null,null,null,null,null,null,{"$f":"CRCP_y2","v":"2005"},null,null,null,null,null,null,null,null,{"$f":"CRCP_y3","v":"2006"},null,null,null,null,null,null,null,null,{"$f":"CRCP_y4","v":"2007"},null,null,null,null,null,null,null,null,{"$f":"CRCP_y5","v":"2008"}]
[null,null,null,null,null,null,null,null,null,null,null,null,null,null,null,null,null,null,null,null,null,null,null,null,null,null,null,null,null,null,null,null,null,null,null,null,null,{"$f":"CRCP_y6","v":"2009"},null,null,null,null,null,null,null,null,{"$f":"CRCP_y7","v":2010},null,null,null,null,null,null,null,null,{"$f":"CRCP_y8","v":2011},null,null,null,null,null,null,null,null,{"$f":"CRCP_y9","v":2012},null,null,null,null,null,null,null,null,{"$f":"CRCP_y10","v":2013}]
[null,null,null,null,null,null,null,null,null,null,null,null,null,null,null,null,null,null,null,null,null,null,null,null,null,null,null,null,null,null,null,null,null,null,null,null,null,{"$f":"CRCP_y11","v":2014},null,null,null,null,null,null,null,null,{"$f":"CRCP_y12","v":2015},null,null,null,null,null,null,null,null,{"$f":"CRCP_y13","v":2016},null,null,null,null,null,null,null,null,{"$f":"CRCP_y14","v":2017},null,null,null,null,null,null,null,null,{"$f":"CRCP_y15","v":2018}]
[]
[null,null,null,null,null,null,null,null,null,null,null,null,null,null,null,null,null,null,null,null,null,null,null,null,null,"Previous period",null,null,null,null,null,null,null,null,null,null,null,{"$f":"PRCP_y1","v":"1999"},null,null,null,null,null,null,null,null,{"$f":"PRCP_y2","v":"2000"},null,null,null,null,null,null,null,null,{"$f":"PRCP_y3","v":"2001"},null,null,null,null,null,null,null,null,{"$f":"PRCP_y4","v":"2002"},null,null,null,null,null,null,null,null,{"$f":"PRCP_y5","v":"2003"}]
[null,null,null,null,null,null,null,null,null,null,null,null,null,null,null,null,null,null,null,null,null,null,null,null,null,null,null,null,null,null,null,null,null,null,null,null,null,{"$f":"PRCP_y6","v":"2004"},null,null,null,null,null,null,null,null,{"$f":"PRCP_y7","v":"2005"},null,null,null,null,null,null,null,null,{"$f":"PRCP_y8","v":"2006"},null,null,null,null,null,null,null,null,{"$f":"PRCP_y9","v":"2007"},null,null,null,null,null,null,null,null,{"$f":"PRCP_y10","v":"2008"}]
[null,null,null,null,null,null,null,null,null,null,null,null,null,null,null,null,null,null,null,null,null,null,null,null,null,null,null,null,null,null,null,null,null,null,null,null,null,{"$f":"PRCP_y11","v":"2009"},null,null,null,null,null,null,null,null,{"$f":"PRCP_y12","v":2010},null,null,null,null,null,null,null,null,{"$f":"PRCP_y13","v":2011},null,null,null,null,null,null,null,null,{"$f":"PRCP_y14","v":2012},null,null,null,null,null,null,null,null,{"$f":"PRCP_y15","v":2013}]
[]
[null,null,null,null,null,null,null,null,null,null,null,null,null,null,null,null,null,null,null,null,null,null,null,null,null,"Commencing year",null,null,null,null,null,null,null,null,null,null,null,"2009"]
[null,null,null,null,null,null,null,null,null,null,null,null,null,null,null,null,null,null,null,null,null,null,null,"ANNUAL RINS"]
[null,null,null,null,null,null,null,null,null,null,null,null,null,null,null,null,null,null,null,null,null,null,null,null,null,"Final year",null,null,null,null,null,null,null,null,null,null,null,2018]
[]
[]
[]
[null,null,null,null,null,null,null,null,null,null,null,null,null,null,null,null,"SUBMISSION DETAILS"]
[]
[null,null,null,null,null,null,null,null,null,null,null,null,null,null,null,null,null,null,null,null,null,null,null,null,null,"RIN type",null,null,null,null,null,null,null,null,null,null,null,{"$f":"INDIRECT(dms_Model)","v":"Category Analysis"}]
[]
[null,null,null,null,null,null,null,null,null,null,null,null,null,null,null,null,null,null,null,null,null,null,null,null,null,"Source",null,null,null,null,null,null,null,null,null,null,null,"Regulatory proposal"]
[]
[null,null,null,null,null,null,null,null,null,null,null,null,null,null,null,null,null,null,null,null,null,null,null,"THIS FILE",null,"Data Quality",null,null,null,null,null,null,null,null,null,null,null,"Consolidated"]
[]
[null,null,null,null,null,null,null,null,null,null,null,null,null,null,null,null,null,null,null,null,null,null,null,null,null,"Confidentiality Status",null,null,null,null,null,null,null,null,null,null,null,"Public"]
[]
[null,null,null,null,null,null,null,null,null,null,null,null,null,null,null,null,null,null,null,null,null,null,null,null,null,"Amended RIN \nAmendment Reason",null,null,null,null,null,null,null,null,null,null,null,"."]
[]
[]
[]
[null,null,null,null,null,null,null,null,null,null,null,null,null,null,null,null,null,null,null,null,null,null,null,null,null,"Submission Date",null,null,null,null,null,null,null,null,null,null,null,"2020-01-31",null,null,null,null,null,null,null,null,null,null,null,null,null,null,null,null,null,"Please enter date this file submitted to AER"]

{"sheet":"2.2 Repex","index":8,"n_rows":55,"n_cols":14,"rows_kept":55,"cut":false,"hidden":false,"merged":[[49,1,54,1],[43,1,48,1],[7,4,7,13],[9,1,14,1],[24,4,24,13],[26,1,31,1],[41,4,41,13],[15,1,20,1],[32,1,37,1]]}
[null,{"$f":"INDEX(dms_Worksheet_List,MATCH(dms_Model,dms_Model_List))","v":"NEW HISTORICAL - CALENDAR YEARS"}]
[null,{"$f":"INDEX(dms_TradingNameFull_List,MATCH(dms_TradingName,dms_TradingName_List))","v":"CitiPower"}]
[null,{"$f":"dms_Header_Span","v":"2009 to 2018"}]
[null,"2.2 REPEX"]
[]
[]
[null,"EXPENDITURE"]
[null,null,null,null,"EXPENDITURE \n($0's)"]
[null,"ASSET GROUP","ASSET CATEGORY",null,{"$f":"dms_y1","v":"2009"},{"$f":"dms_y2","v":2010},{"$f":"dms_y3","v":2011},{"$f":"dms_y4","v":2012},{"$f":"dms_y5","v":2013},{"$f":"dms_y6","v":2014},{"$f":"dms_y7","v":2015},{"$f":"dms_y8","v":2016},{"$f":"dms_y9","v":2017},{"$f":"dms_y10","v":2018}]
[null,"STAKING WOODEN POLES BY: \nHIGHEST OPERATING VOLTAGE","˂ = 1 Kv","for year wooden pole staked",201093.24758842445,152165.78947368418,106154.48028673834,211352.63157894739,279998.33679833682,314245.16129032261,179756.56108597285,144127.52293577982,166895.0266666667,26072.923015777003]
[null,null,"> 1 kV & < = 11 kV","for year wooden pole staked",54533.762057877815,55985.526315789466,69032.974910394259,78192.731829573939,116961.33056133056,114270.96774193548,81472.398190045249,96463.302752293574,69747.175323383097,11365.120288928438]
[null,null,"˃ 11 kV & < = 22 kV","for year wooden pole staked",1704.1800643086817,2153.2894736842104,2605.0179211469531,1548.3709273182958,1772.1413721413721,1428.3870967741937,1293.2126696832579,0,0,0]
[null,null,"> 22 kV & < = 66 kV","for year wooden pole staked",7668.8102893890682,7895.3947368421041,3907.5268817204296,17806.265664160401,27468.191268191269,12855.483870967742,23277.828054298643,6809.1743119266048,13700.33800995025,4011.2189255041544]
[null,null,"> 66 kV & < = 132 kV","for year wooden pole staked",0,0,0,0,0,0,0,0,0,0]
[null,null,"> 132 kV","for year wooden pole staked",0,0,0,0,0,0,0,0,0,0]
[null,"STAKED POLE REPLACED WITH NEW POLE BY: \nHIGHEST OPERATING VOLTAGE","˂ = 1 Kv","for year wooden pole staked",0,11356.058708539096,13336.50621004309,0,84192.864599004999,120150.04226574721,262041.71103283204,80145.226804036531,109563.26668055657,37312.802666174866]
[null,null,"> 1 kV & < = 11 kV","for year wooden pole staked",0,0,0,0,42096.4322995025,0,145578.72835157337,64116.181443229209,15651.895240079511,18656.401333087433]
[null,null,"˃ 11 kV & < = 22 kV","for year wooden pole staked",0,0,0,0,0,0,0,0,0,0]
[null,null,"> 22 kV & < = 66 kV","for year wooden pole staked",0,0,0,0,0,0,34500.459525895778,0,20023.296687924594,11933.464072287772]
[null,null,"> 66 kV & < = 132 kV","for year wooden pole staked",0,0,0,0,0,0,0,0,0,0]
[null,null,"> 132 kV","for year wooden pole staked",0,0,0,0,0,0,0,0,0,0]
[]
[]
[null,"ASSET REPLACEMENTS"]
[null,null,null,null,"VOLUMES \n(0's)"]
[null,"ASSET GROUP","ASSET CATEGORY",null,{"$f":"dms_y1","v":"2009"},{"$f":"dms_y2","v":2010},{"$f":"dms_y3","v":2011},{"$f":"dms_y4","v":2012},{"$f":"dms_y5","v":2013},{"$f":"dms_y6","v":2014},{"$f":"dms_y7","v":2015},{"$f":"dms_y8","v":2016},{"$f":"dms_y9","v":2017},{"$f":"dms_y10","v":2018}]
[null,"STAKING WOODEN POLES BY: \nHIGHEST OPERATING VOLTAGE","˂ = 1 Kv",null,236,212,163,273,316,440,139,127,134,39]
[null,null,"> 1 kV & < = 11 kV",null,64,78,106,101,132,160,63,85,56,17]
[null,null,"˃ 11 kV & < = 22 kV",null,2,3,4,2,2,2,1,0,0,0]
[null,null,"> 22 kV & < = 66 kV",null,9,11,6,23,31,18,18,6,11,6]
[null,null,"> 66 kV & < = 132 kV",null,0,0,0,0,0,0,0,0,0,0]
[null,null,"> 132 kV",null,0,0,0,0,0,0,0,0,0,0]
[null,"STAKED POLE REPLACED WITH NEW POLE BY: \nHIGHEST OPERATING VOLTAGE","˂ = 1 Kv",null,0,1,1,0,4,5,9,5,7,4]
[null,null,"> 1 kV & < = 11 kV",null,0,0,0,0,2,0,5,4,1,2]
[null,null,"˃ 11 kV & < = 22 kV",null,0,0,0,0,0,0,0,0,0,0]
[null,null,"> 22 kV & < = 66 kV",null,0,0,0,0,0,0,1,0,1,1]
[null,null,"> 66 kV & < = 132 kV",null,"","","","","","",""]
[null,null,"> 132 kV"]
[]
[]
[null,"ASSET FAILURES"]
[null,null,null,null,"VOLUMES \n(0's)"]
[null,"ASSET GROUP","ASSET CATEGORY",null,{"$f":"dms_y1","v":"2009"},{"$f":"dms_y2","v":2010},{"$f":"dms_y3","v":2011},{"$f":"dms_y4","v":2012},{"$f":"dms_y5","v":2013},{"$f":"dms_y6","v":2014},{"$f":"dms_y7","v":2015},{"$f":"dms_y8","v":2016},{"$f":"dms_y9","v":2017},{"$f":"dms_y10","v":2018}]
[null,"STAKING WOODEN POLES BY: \nHIGHEST OPERATING VOLTAGE","˂ = 1 Kv"]
[null,null,"> 1 kV & < = 11 kV"]
[null,null,"˃ 11 kV & < = 22 kV"]
[null,null,"> 22 kV & < = 66 kV"]
[null,null,"> 66 kV & < = 132 kV"]
[null,null,"> 132 kV"]
[null,"STAKED POLE REPLACED WITH NEW POLE BY: \nHIGHEST OPERATING VOLTAGE","˂ = 1 Kv",null,"","","","","","",""]
[null,null,"> 1 kV & < = 11 kV",null,"","","","","","",""]
[null,null,"˃ 11 kV & < = 22 kV",null,"","","","","","",""]
[null,null,"> 22 kV & < = 66 kV",null,"","","","","","",""]
[null,null,"> 66 kV & < = 132 kV",null,"","","","","","",""]
[null,null,"> 132 kV"]

{"sheet":"2.5 Connections","index":9,"n_rows":64,"n_cols":14,"rows_kept":64,"cut":false,"hidden":false,"merged":[[29,4,29,13],[47,1,47,13],[48,4,48,13],[5,1,5,2],[7,1,7,13],[8,4,8,13],[9,4,9,13],[27,1,27,13],[28,4,28,13]]}
[null,{"$f":"INDEX(dms_Worksheet_List,MATCH(dms_Model,dms_Model_List))","v":"NEW HISTORICAL - CALENDAR YEARS"}]
[null,{"$f":"INDEX(dms_TradingNameFull_List,MATCH(dms_TradingName,dms_TradingName_List))","v":"CitiPower"}]
[null,{"$f":"dms_Header_Span","v":"2009 to 2018"}]
[null,"2.5 CONNECTIONS"]
[]
[null,"There are THREE tables on this worksheet - each has been 'grouped' (and sub-grouped) for easy navigation. See the Instructions sheet on how to group or ungroup tables. "]
[]
[null,"EXPENDITURE - STANDARD CONTROL SERVICES"]
[null,null,null,null,"EXPENDITURE"]
[null,null,null,null,"($0's)"]
[null,null,null,null,{"$f":"dms_y1","v":"2009"},{"$f":"dms_y2","v":2010},{"$f":"dms_y3","v":2011},{"$f":"dms_y4","v":2012},{"$f":"dms_y5","v":2013},{"$f":"dms_y6","v":2014},{"$f":"dms_y7","v":2015},{"$f":"dms_y8","v":2016},{"$f":"dms_y9","v":2017},{"$f":"dms_y10","v":2018}]
[null,"RESIDENTIAL","Simple connection LV",null,961981.04366226809,1356290.0486264043,1109839.3454233701,1104923.7080957817,1150295.23568182,1660643.1660491142,1614667.437639191,0,0,0]
[null,null,"Complex connection LV",null,6662015.3431731779,5828675.3274165979,7746894.1859178469,8188294.0117011378,7879213.7723916452,7781791.6335450066,7970781.9249416394,10951075.667717822,14189880.005458305,14835324.268581653]
[null,null,"Complex connection HV",null,19095571.932926711,15046845.73203478,21205683.594913475,22440078.237722639,21112646.602847774,21796155.353937291,22954430.333924919,18213893.087077387,17609165.344674356,23509000.512165017]
[null,"COMMERCIAL/INDUSTRIAL","Simple connection LV",null,2004340.9814465865,1861723.6111394216,2089366.2067627844,2155253.7753772666,2148546.58597589,1931965.6061253271,2312138.4882730604,1604233.0193448442,1807090.414330425,2173017.97984285]
[null,null,"Complex connection HV (customer connected at LV, minor HV works)",null,0,0,0,0,0,0,0,0,0,0]
[null,null,"Complex connection HV (customer connected at LV, upstream asset works)",null,8482018.8884473927,6569292.9917893363,9474009.8505121507,9912464.2936622519,9372449.3362685665,9500323.7657444663,9620233.8104902022,7667000.7929609828,7529160.8277744697,9908074.2264029905]
[null,null,"Complex connection HV (customer connected at HV)",null,0,0,202705.62853799755,0,0,732825.68390912097,1671022.3470998793,4089456.1324000219,2448878.2788783913,1374684.4970268873]
[null,null,"Complex connection sub-transmission",null,0,0,0,0,0,0,0,0,0,0]
[null,"SUBDIVISION","Complex connection LV",null,0,0,0,0,0,0,0,0,0,0]
[null,null,"Complex connection HV (no upstream asset works)",null,0,0,0,0,0,0,0,0,0,0]
[null,null,"Complex connection HV (with upstream asset works)",null,0,0,0,0,0,0,0,0,0,0]
[null,"EMBEDDED GENERATION","Simple connection LV",null,0,0,0,0,0,0,0,0,0,0]
[null,null,"Complex connection HV (small capacity)",null,0,211216.93501910081,695969.35584585997,201066.78557938506,280889.07405713975,119408.07424391169,65892.487631107811,21594.300498941451,41208.128884053993,8916.3059806046422]
[null,null,"Complex connection HV (large capacity)",null,0,0,0,0,0,0,0,0,0,0]
[]
[]
[null,"EXPENDITURE - STANDARD CONTROL SERVICES - CAPITAL CONTRIBUTIONS"]
[null,null,null,null,"EXPENDITURE"]
[null,null,null,null,"($0's)"]
[null,null,null,null,{"$f":"dms_y1","v":"2009"},{"$f":"dms_y2","v":2010},{"$f":"dms_y3","v":2011},{"$f":"dms_y4","v":2012},{"$f":"dms_y5","v":2013},{"$f":"dms_y6","v":2014},{"$f":"dms_y7","v":2015},{"$f":"dms_y8","v":2016},{"$f":"dms_y9","v":2017},{"$f":"dms_y10","v":2018}]
[null,"RESIDENTIAL","Simple connection LV",null,344749.85517959285,454856.99287219741,290908.7722201845,250841.55944500605,278352.62711910112,404957.54126323259,449715.46090922074,0,0,0]
[null,null,"Complex connection LV",null,2387499.0467790482,1954754.2463664953,2030599.7308874929,1858919.6919569285,1906640.821543725,1897635.3686147521,2220013.7214775593,5055377.1520372806,7819283.1854333077,7558063.4915870596]
[null,null,"Complex connection HV",null,6843373.5797804426,5046238.4567494905,5558389.5129729165,5094382.6962669725,5108915.055061046,5315119.865347906,6393243.572572981,8408132.8406389914,9703468.277121624,11976989.196723735]
[null,"COMMERCIAL/INDUSTRIAL","Simple connection LV",null,718305.48807241197,624363.50114023802,547660.30816455046,489289.18264147284,519913.12155585655,471121.10395334894,643974.35762993316,740566.78984027251,995790.78088724287,1107074.4098795978]
[null,null,"Complex connection HV (customer connected at LV, minor HV works)",null,0,0,0,0,0,0,0,0,0,0]
[null,null,"Complex connection HV (customer connected at LV, upstream asset works)",null,3039742.6255827844,2203134.0999426441,2483307.6832062257,2250343.6057592835,2267979.3972585457,2316709.4725916279,2679417.309897983,3539340.0437953565,4148917.4424585672,5047807.0264432905]
[null,null,"Complex connection HV (customer connected at HV)",null,0,0,53132.776165558302,0,0,178703.82584141957,465411.37047662114,1887827.6183349732,1349445.7135536717,700352.24854730989]
[null,null,"Complex connection sub-transmission",null,0,0,0,0,0,0,0,0,0,0]
[null,"SUBDIVISION","Complex connection LV",null,0,0,0,0,0,0,0,0,0,0]
[null,null,"Complex connection HV (no upstream asset works)",null,0,0,0,0,0,0,0,0,0,0]
[null,null,"Complex connection HV (with upstream asset works)",null,0,0,0,0,0,0,0,0,0,0]
[null,"EMBEDDED GENERATION","Simple connection LV",null,0,0,0,0,0,0,0,0,0,0]
[null,null,"Complex connection HV (small capacity)",null,0,70835.511920012883,182426.03458499489,45646.505435428218,67970.560311425535,29118.356755614936,18352.305716157294,9968.6402202831323,22707.593662688269,4542.536818999386]
[null,null,"Complex connection HV (large capacity)",null,0,0,0,0,0,0,0,0,0,0]
[]
[]
[null,"NEW CONNECTIONS - STANDARD CONTROL SERVICES"]
[null,null,null,null,"VOLUMES\n(0's)"]
[null,null,null,null,{"$f":"dms_y1","v":"2009"},{"$f":"dms_y2","v":2010},{"$f":"dms_y3","v":2011},{"$f":"dms_y4","v":2012},{"$f":"dms_y5","v":2013},{"$f":"dms_y6","v":2014},{"$f":"dms_y7","v":2015},{"$f":"dms_y8","v":2016},{"$f":"dms_y9","v":2017},{"$f":"dms_y10","v":2018}]
[null,"RESIDENTIAL","Simple connection LV",null,4494.3622253577896,3731.0683329973795,5128.4726869582746,5322.0941342471278,4545.3241281999599,4228.62,3337,0,0,0]
[null,null,"Complex connection LV",null,231,159,145,147,147,141.48025211466299,95,549,602,788.29320549999943]
[null,null,"Complex connection HV",null,106,69,85,100,85,85.513993770899447,88,51,77,194.70263000465374]
[null,"COMMERCIAL/INDUSTRIAL","Simple connection LV",null,1877,1670.9999999999998,1437,1607,1780,1559.4010779899074,1350,17,26.9,35.45530742921995]
[null,null,"Complex connection HV (customer connected at LV, minor HV works)",null,0,0,0,0,0,0,0,0,0,0]
[null,null,"Complex connection HV (customer connected at LV, upstream asset works)",null,46,34,39,44,38,37.536150966373064,37,22,34.4,86.319995471720631]
[null,null,"Complex connection HV (customer connected at HV)",null,0,0,1,1,0,7.0740197963462714,1,3,2.7,1.5467690398126992]
[null,null,"Complex connection sub-transmission",null,0,0,0,0,0,0,0,0,0,0]
[null,"SUBDIVISION","Complex connection LV",null,0,0,0,0,0,0,0,0,0,0]
[null,null,"Complex connection HV (no upstream asset works)",null,0,0,0,0,0,0,0,0,0,0]
[null,null,"Complex connection HV (with upstream asset works)",null,0,0,0,0,0,0,0,0,0,0]
[null,"EMBEDDED GENERATION","Simple connection LV",null,0,0,0,0,0,0,0,0,0,0]
[null,null,"Complex connection HV (small capacity)",null,0,3,6,2,4,1.2592945348207099,1,1,1,0.22142055934991772]
[null,null,"Complex connection HV (large capacity)",null,0,0,0,0,0,0,0,0,0,0]

{"sheet":"2.6 Non-network","index":10,"n_rows":29,"n_cols":12,"rows_kept":29,"cut":false,"hidden":false,"merged":[[7,2,7,11],[8,2,8,11]]}
[null,{"$f":"INDEX(dms_Worksheet_List,MATCH(dms_Model,dms_Model_List))","v":"NEW HISTORICAL - CALENDAR YEARS"}]
[null,{"$f":"INDEX(dms_TradingNameFull_List,MATCH(dms_TradingName,dms_TradingName_List))","v":"CitiPower"}]
[null,{"$f":"dms_Header_Span","v":"2009 to 2018"}]
[null,"2.6 NON NETWORK EXPENDITURE"]
[]
[]
[null,"2.6.5 - INFORMATION & COMMUNICATIONS TECHNOLOGY - CAPEX"]
[null,null,"EXPENDITURE"]
[null,null,"($0's)"]
[null,null,{"$f":"dms_y1","v":"2009"},{"$f":"dms_y2","v":2010},{"$f":"dms_y3","v":2011},{"$f":"dms_y4","v":2012},{"$f":"dms_y5","v":2013},{"$f":"dms_y6","v":2014},{"$f":"dms_y7","v":2015},{"$f":"dms_y8","v":2016},{"$f":"dms_y9","v":2017},{"$f":"dms_y10","v":2018}]
[null,"RECURRENT"]
[null,"Market Compliance",230958.84700959412,439268.05507104989,338845.37291085324,561431.7162401008,487923.10542208649,839377.0766287233,1976252.5975869496,1223441.2689023518,821120.65518788493,771495.50605075294]
[null,"Customer Engagement",68983.412290874272,131201.76923951277,101207.25127015133,167689.94154597234,145734.19110538476,250707.41257286703,590272.46410088218,365420.74295536912,245254.53530267096,230432.36171093714]
[null,"Corporate Services",519629.17015898332,988299.42169064598,762360.66389162291,1263152.7243407937,1097767.3367123315,1888495.8053195442,4446326.740044659,2752593.2846017973,1847421.0889958113,1735770.5703037411]
[null,"Field Work & Construction",200618.63964870575,381563.03943544551,294332.5126740433,487678.51340653928,423826.45622960175,729111.22239264869,1716639.6215757227,1062722.3257963369,713253.07934363047,670147.00204388541]
[null,"Service Management and Ops",208601.53916713997,396745.97263195808,306044.41979194363,507083.93145064922,440691.11057707138,758123.58952022542,1784947.1409188807,1105009.5507405603,741634.42852227215,696813.09941780812]
[null,"Network Assets and Network Operations",550981.81776187406,1047930.029966404,808358.89996829838,1339367.0412213712,1164002.8647281572,2002441.1857638436,4714602.8942976603,2918675.352742428,1958888.1614846652,1840501.0322090101]
[null,"Cyber Security",127091.44739182574,241719.30902327748,186458.97069045538,308943.2180342811,268493.08648233506,461890.28460049612,1087487.2571075282,673232.15229435533,451844.18740546238,424536.58645172487]
[]
[]
[]
[null,"NON-RECURRENT"]
[null,"Market Compliance",344587.2243616865,655381.5184286997,505552.34428539209,837647.91551699175,727974.14247719676,1252338.3311499788,2948539.9934117757,1825356.4930686047,1225100.0171709766,1151060.0199112541]
[null,"Customer Engagement",29629.937269653125,56354.130118155095,43470.80561518277,72026.626166421964,62596.134303832128,107684.50937521677,253535.38629787974,156956.48172843384,105342.37514193529,98975.916030415217]
[null,"Corporate Services",38317.50355051599,72877.291680946146,56216.546573979846,93144.999894759181,80949.465960976799,139257.85710476281,327872.54918019543,202976.48594975134,136229.00368591119,127995.88400733075]
[null,"Field Work & Construction",5358.1633387303618,10190.863086787564,7861.0924765914324,13025.016699330907,11319.642998925654,19473.250484212287,45848.3593660353,28383.403532708238,19049.707981609445,17898.422121689295]
[null,"Service Management and Ops",119.33827545001272,226.97330208910637,175.08410251856645,290.09623864398367,252.11375406142264,433.71281972577526,1021.14545471314,632.16184630120233,424.27958138549303,398.63787164519027]
[null,"Network Assets and Network Operations",88472.89079452322,168269.43487559588,129800.74182880767,215066.39629798988,186907.61657785592,321538.30605551263,757038.67815654585,468660.92024010798,314544.85938158201,295535.06409935578]
[null,"Cyber Security",2038.4962006368446,3877.081449433605,2990.7276305958339,4955.3261773294462,4306.5221769336968,7408.5362122466586,17442.862500575018,10798.37560089726,7247.4008142039593,6809.3977704501167]

{"sheet":"2.10 Network overheads","index":11,"n_rows":35,"n_cols":13,"rows_kept":35,"cut":false,"hidden":false,"merged":[[7,3,7,12],[8,3,8,12],[23,3,23,12],[24,3,24,12]]}
[null,{"$f":"INDEX(dms_Worksheet_List,MATCH(dms_Model,dms_Model_List))","v":"NEW HISTORICAL - CALENDAR YEARS"}]
[null,{"$f":"INDEX(dms_TradingNameFull_List,MATCH(dms_TradingName,dms_TradingName_List))","v":"CitiPower"}]
[null,{"$f":"dms_Header_Span","v":"2009 to 2018"}]
[null,"2.10 OVERHEADS"]
[]
[]
[null,"2.10.1 - NETWORK OVERHEADS EXPENDITURE"]
[null,null,null,"EXPENDITURE"]
[null,null,null,"($0's)"]
[null,null,null,{"$f":"dms_y1","v":"2009"},{"$f":"dms_y2","v":2010},{"$f":"dms_y3","v":2011},{"$f":"dms_y4","v":2012},{"$f":"dms_y5","v":2013},{"$f":"dms_y6","v":2014},{"$f":"dms_y7","v":2015},{"$f":"dms_y8","v":2016},{"$f":"dms_y9","v":2017},{"$f":"dms_y10","v":2018}]
[null,"OPEX"]
[null,"Standard Control Services","Total  ",15843481.556422867,16629361.869981008,17519316.893408705,22765819.592902385,22010521.521160509,23921523.63877973,27073192.449597988,20026511,15102699.68,13261953.829303499]
[null,"Alternative Control Services","Total  ",1722001.7896754658,1975115.4532513567,1117279.2304232055,1372202.4094437447,1180288.6035957425,1183085.8147040198,995407.77227985032,1015137,860150,682656.94225211861]
[null,"CAPEX"]
[null,"Standard Control Services","Total  ",14364918.869999997,14314288.629999999,15107854.749999998,11721535.010000002,13897704.830000002,15414141.58,14335092.2070216,16688223,17421557.32,17928329.16367225]
[null,"Alternative Control Services","Total  ",387945,898884,263652,191363,475090,447591.9,420811.11,288658,688709,511173.53000000009]
[null,"OTHER DISTRIBUTION SERVICES"]
[null,"Negotiated Services","Total  ",0,0,0,0,0,0,0,156400,819097,921077.85474620445]
[null,"Unregulated Services","Total  ",0,0,0,0,0,0,0,0,0,""]
[]
[]
[]
[null,"2.10.2 - CORPORATE OVERHEADS EXPENDITURE"]
[null,null,null,"EXPENDITURE"]
[null,null,null,"($0's)"]
[null,null,null,{"$f":"dms_y1","v":"2009"},{"$f":"dms_y2","v":2010},{"$f":"dms_y3","v":2011},{"$f":"dms_y4","v":2012},{"$f":"dms_y5","v":2013},{"$f":"dms_y6","v":2014},{"$f":"dms_y7","v":2015},{"$f":"dms_y8","v":2016},{"$f":"dms_y9","v":2017},{"$f":"dms_y10","v":2018}]
[null,"OPEX"]
[null,"Standard Control Services","Total",8121737.5665408131,8918988.3293632753,5452269.5475516338,7358008.2086575152,8225106.4180495888,8171649.1308867624,8145897.1619483633,31880074,33215860,33137593.274948411]
[null,"Alternative Control Services","Total",1055370.109111879,1397754.4506173229,1047284.3771087031,1506243.1361019388,1162518.1003997531,1356949.5125033474,967140.13292097021,2670996,5153251,5188212.3269757666]
[null,"CAPEX"]
[null,"Standard Control Services","Total",12378745.836201992,12017909.209442442,13803610.272112433,14930537.589999994,15557834.299999999,18289329.409999996,17883082.5614185,"                                                                                -  ",0,0]
[null,"Alternative Control Services","Total",352161,592243.00000000186,604179,662483,757589,650633.93000000005,798005.97,"                                                                                -  ",915714,707873.14]
[null,"OTHER DISTRIBUTION SERVICES"]
[null,"Negotiated Services","Total",0,0,0,0,0,0,0,0,738207,914722.37149841641]
[null,"Unregulated Services","Total",0,0,0,0,0,0,0,0,0,""]

{"sheet":"2.11 Labour","index":12,"n_rows":25,"n_cols":12,"rows_kept":25,"cut":false,"hidden":false,"merged":[[5,1,5,2],[8,2,8,11],[9,2,9,11]]}
[null,{"$f":"INDEX(dms_Worksheet_List,MATCH(dms_Model,dms_Model_List))","v":"NEW HISTORICAL - CALENDAR YEARS"}]
[null,{"$f":"INDEX(dms_TradingNameFull_List,MATCH(dms_TradingName,dms_TradingName_List))","v":"CitiPower"}]
[null,{"$f":"dms_Header_Span","v":"2009 to 2018"}]
[null,"2.11 LABOUR"]
[]
[null,"Table numbering on this worksheet starts at 2.11.3."]
[]
[null,"2.11.3 - LABOUR / NON-LABOUR EXPENDITURE SPLIT - STANDARD CONTROL SERVICES"]
[null,null,"EXPENDITURE"]
[null,null,"($0's)"]
[null,null,{"$f":"dms_y1","v":"2009"},{"$f":"dms_y2","v":2010},{"$f":"dms_y3","v":2011},{"$f":"dms_y4","v":2012},{"$f":"dms_y5","v":2013},{"$f":"dms_y6","v":2014},{"$f":"dms_y7","v":2015},{"$f":"dms_y8","v":2016},{"$f":"dms_y9","v":2017},{"$f":"dms_y10","v":2018}]
[null,"OPEX"]
[null,"In-house labour expenditure"]
[null,"Labour expenditure outsourced to related parties"]
[null,"Labour expenditure outsourced to unrelated parties"]
[null,"Controllable non-labour expenditure"]
[null,"Uncontrollable non-labour expenditure"]
[null,"Total",{"$f":"SUM(C13:C17)","v":0},0,0,0,0,0,0,0,0,0]
[null,"CAPEX"]
[null,"In-house labour expenditure"]
[null,"Labour expenditure outsourced to related parties"]
[null,"Labour expenditure outsourced to unrelated parties"]
[null,"Controllable non-labour expenditure"]
[null,"Uncontrollable non-labour expenditure"]
[null,"Total",{"$f":"SUM(C20:C24)","v":0},0,0,0,0,0,0,0,0,0]

{"sheet":"8.2 Capex","index":13,"n_rows":42,"n_cols":12,"rows_kept":42,"cut":false,"hidden":false,"merged":[[8,2,8,11],[9,2,9,11]]}
[null,{"$f":"IF(dms_MultiYear_ResponseFlag=\"Yes\",\"REGULATORY REPORTING STATEMENT - HISTORICAL INFORMATION\",INDEX(dms_Worksheet_List,MATCH(dms_Model,dms_Model_List)))","v":"REGULATORY REPORTING STATEMENT - HISTORICAL INFORMATION"}]
[null,{"$f":"INDEX(dms_TradingNameFull_List,MATCH(dms_TradingName,dms_TradingName_List))","v":"CitiPower"}]
[null,{"$f":"dms_Header_Span","v":"2009 to 2018"}]
[null,"8.2 CAPITAL EXPENDITURE"]
[]
[]
[null,"8.2.7 - IMMEDIATE EXPENSING CAPEX"]
[null,"ACTUAL - AS INCURRED"]
[null,null,"EXPENDITURE"]
[null,null,"$0's"]
[null,"Asset class",{"$f":"dms_y1","v":"2009"},{"$f":"dms_y2","v":2010},{"$f":"dms_y3","v":2011},{"$f":"dms_y4","v":2012},{"$f":"dms_y5","v":2013},{"$f":"dms_y6","v":2014},{"$f":"dms_y7","v":2015},{"$f":"dms_y8","v":2016},{"$f":"dms_y9","v":2017},{"$f":"dms_y10","v":2018}]
[null,"Subtransmission",null,null,null,null,null,null,null,6981231.422810033,18578764.401748512,11279441.547066955]
[null,"Distribution system assets",null,null,null,null,null,null,null,31894954.038046338,26005667.685921092,32937886.961364016]
[null,"Standard metering",null,null,null,null,null,null,null,0,0,0]
[null,"Public lighting",null,null,null,null,null,null,null,0,0,0]
[null,"SCADA/Network control",null,null,null,null,null,null,null,0,0,0]
[null,"Non-network general assets - IT",null,null,null,null,null,null,null,0,0,0]
[null,"Non-network general assets - Other",null,null,null,null,null,null,null,0,0,0]
[null,"VBRC",null,null,null,null,null,null,null,0,0,0]
[null,"Supervisory cables",null,null,null,null,null,null,null,0,0,0]
[null,"Old SWER ACRs",null,null,null,null,null,null,null,0,0,0]
[null,"Land",null,null,null,null,null,null,null,0,0,0]
[]
[]
[]
[]
[]
[]
[]
[]
[]
[]
[]
[]
[]
[]
[]
[]
[]
[]
[]
[null,"Total",null,null,null,null,null,null,null,{"$f":"SUM(J12:J41)","v":38876185.460856371},{"$f":"SUM(K12:K41)","v":44584432.087669604},{"$f":"SUM(L12:L41)","v":44217328.508430973}]